Cogmind - Beta 16.1 @@@ ROGUE MODE // 2026.03.08 @ 12:07:11 Player: shockman27 Result: Destroyed by G-73 Enforcer with Heavy Laser Performance ------------- Evolutions (8) 4000 Regions Visited (28) 5600 Robots Destroyed (380) 1900 Value Destroyed (19414) 19414 Prototype IDs (49) 980 Alien Tech Used (3) 600 Bonus (11374) 11374 TOTAL SCORE: 43868 Bonus ------- High Alert Combat Kills 1512 Follower Combat Kills 1503 Entered Garrisons 1000 Used RIF Installer 3500 Network Hubs Disabled 400 Aligned with FarCom 300 Built Enhanced Grunts 300 A7 Reached Mainframe 300 Met R17 at Cetus 500 Used Core Reset Matrix 3000 Met R17 at Research 2000 Met Sigix 2000 Friendly Fire -4941 Cogmind --------- Core Integrity 0/1450 Matter 120/300 Energy 92/100 System Corruption 0% Temperature Cool (0) Movement Core (50) Location -2/Quarantine Parts ------- > --- POWER (2) -------- (None) > --- PROPULSION (6) --- (None) > --- UTILITY (12) ----- Advanced Terrain Scan Processor > --- WEAPON (3) ------- Plasma Sword > --- INVENTORY (5) ---- Light Quantum Reactor Nova Cannon Improved Remote Datajack Sigix Containment Pod Peak State ------------ > --- POWER ------------ Quantum Reactor Improved Quantum Reactor > --- PROPULSION ------- Heavy Treads Heavy Treads Improved Heavy Treads > --- UTILITY ---------- Experimental Power Amplifier Advanced Cooling System Huge Storage Unit Enhanced Optical Array Advanced Sensor Array Advanced Signal Interpreter Layered Heavy Armor Plating Centrium Light Armor Plating Relay Coupler [NC] > --- WEAPON ----------- AWS/Autocannon > --- INVENTORY -------- Particle Reactor Heavy Treads Biometal Medium Treads Compact Matter Pod Improved Medium Armor Plating Centrium Medium Armor Plating Graphene Brace Experimental EM Shield Relay Coupler [Grunt] Relay Coupler [Sentry] Relay Coupler [Hunter] Dynamic Insulation System Heavy Dispersion Rifle Nova Cannon Railgun Advanced KE Penetrator Advanced KE Penetrator Advanced KE Penetrator Micro-nuke Launcher Improved Remote Datajack Phasing Sabre [Rating: 154] Favorites ----------- Power Cooled Ion Engine Engine Cooled Ion Engine Power Core Enhanced Nuclear Core Reactor Antimatter Reactor Propulsion Light Treads Treads Light Treads Wheel Wheel Hover Unit Combat Linear Gravjet Utility Huge Storage Unit Device Weapon Cycler Storage Huge Storage Unit Processor Improved Signal Interpreter Hackware Relay Coupler [NC] Protection Hardened Light Armor Plating Weapon Enhanced Autogun Energy Gun EM Shotgun Energy Cannon Ion Cannon Ballistic Gun Enhanced Autogun Ballistic Cannon AWS/Autocannon Launcher Heavy Rocket Launcher Special Weapon Remote Datajack Impact Weapon Maul Slashing Weapon Phasing Sabre Special Melee Weapon Improved Datajack Build | -11 -10 -10 -9 -9 -9 -8 -8 -8 -7 -7 -7 -7 -7 -7 -6 -6 -6 -6 -6 -6 -6 -5 -5 -4 -4 -3 -2 -2 ------- Run | Yrd Mat Min Mat Min Exi Min Mat Gar Fac Was Fac Gar Fac Gar Fac Was Fac Ext Cet Arc Hub Fac Gar Fac Gar Res Res Qua Slots Evolved 16 | . . . 2 . . . 2 . 2 . . . . . 2 . . . . . . 2 . 2 . 2 2 . Power 1 | . . . . . . . . . . . . . . . . . . . . . . . . . . 1 . . Propulsion 4 | . . . 1 . . . 1 . . . . . . . . . . . . . . 2 . . . . . . Utility 10 | . . . . . . . 1 . 2 . . . . . 2 . . . . . . . . 2 . 1 2 . Weapon 1 | . . . 1 . . . . . . . . . . . . . . . . . . . . . . . . . Parts Attached 280 | 7 6 2 30 3 . 1 23 18 8 9 1 1 11 16 12 7 5 8 7 3 9 9 15 8 9 31 14 7 Power 26 | 1 . . 4 . . . 1 . 1 1 . . 1 2 . 1 . . 1 . . . . . 2 6 3 2 Engine 6 | 1 . . 3 . . . 1 . 1 . . . . . . . . . . . . . . . . . . . Core 5 | . . . 1 . . . . . . . . . 1 1 . . . . . . . . . . 1 1 . . Reactor 15 | . . . . . . . . . . 1 . . . 1 . 1 . . 1 . . . . . 1 5 3 2 Propulsion 64 | 2 1 1 8 1 . . 12 5 4 2 . . . 4 1 2 . 2 2 . . 1 2 2 3 7 1 1 Treads 61 | 2 . 1 8 1 . . 12 5 4 2 . . . 4 1 2 . 2 2 . . 1 2 1 3 7 1 . Leg . | . . . . . . . . . . . . . . . . . . . . . . . . . . . . . Wheel 1 | . 1 . . . . . . . . . . . . . . . . . . . . . . . . . . . Hover 2 | . . . . . . . . . . . . . . . . . . . . . . . . 1 . . . 1 Flight . | . . . . . . . . . . . . . . . . . . . . . . . . . . . . . Utility 103 | 2 3 . 5 . . . 2 6 3 4 1 . 5 3 7 1 4 4 1 3 6 7 7 6 2 11 7 3 Device 50 | 1 1 . . . . . 2 3 1 2 . . 2 1 5 . 3 2 . 2 4 5 4 2 2 5 3 . Storage 7 | 1 1 . 1 . . . . . . . . . . . . . . . . . . . . . . 2 1 1 Processor 10 | . . . . . . . . . 1 . . . 1 . 1 . . . . . . 2 1 1 . 1 . 2 Hackware 9 | . . . . . . . . . . 1 . . . 2 . 1 . . . 1 . . . 1 . . 3 . Protection 27 | . 1 . 4 . . . . 3 1 1 1 . 2 . 1 . 1 2 1 . 2 . 2 2 . 3 . . Artifact . | . . . . . . . . . . . . . . . . . . . . . . . . . . . . . Weapon 87 | 2 2 1 13 2 . 1 8 7 . 2 . 1 5 7 4 3 1 2 3 . 3 1 6 . 2 7 3 1 Energy Gun 15 | 1 2 1 1 . . . . 2 . . . . . . . . . . 1 . . 1 2 . . 4 . . Energy Cannon 9 | . . . 1 1 . 1 1 . . . . . 1 . 1 . . . 1 . 1 . . . . . 1 . Ballistic Gun 44 | 1 . . 7 . . . 5 3 . 1 . 1 3 6 3 2 . 1 1 . 2 . 3 . 2 1 2 . Ballistic Cannon 2 | . . . . 1 . . . . . . . . . 1 . . . . . . . . . . . . . . Launcher 6 | . . . 1 . . . . 2 . . . . 1 . . . . . . . . . 1 . . 1 . . Special Weapon 4 | . . . 1 . . . . . . . . . . . . 1 1 . . . . . . . . 1 . . Impact Weapon 2 | . . . 2 . . . . . . . . . . . . . . . . . . . . . . . . . Slashing Weapon 4 | . . . . . . . 2 . . . . . . . . . . 1 . . . . . . . . . 1 Piercing Weapon . | . . . . . . . . . . . . . . . . . . . . . . . . . . . . . Special Melee Weapon 1 | . . . . . . . . . . 1 . . . . . . . . . . . . . . . . . . Unidentified Prototypes 24 | . . . 1 . . . 3 . . . . . 2 . . . . . 4 . 2 1 1 . . 6 . 4 Corrupted Parts 4 | . . 1 . . . . . 1 . . . . . . . . . . . . 2 . . . . . . . System Corruption 22 | . . 6 . . . . . 7 . . . . . . . . . . . . 9 . . . . . . . Parts Lost 65 | . . 1 2 . . . . 1 3 2 . . 1 11 1 . . . . . 2 . . 2 4 9 21 5 Power 7 | . . . . . . . . . . . . . . 1 . . . . . . . . . . 1 2 3 . Propulsion 14 | . . . 2 . . . . . 1 1 . . . 3 . . . . . . . . . . 1 3 2 1 Utility 29 | . . . . . . . . 1 1 . . . 1 4 1 . . . . . 2 . . 2 . 3 10 4 Weapon 15 | . . 1 . . . . . . 1 1 . . . 3 . . . . . . . . . . 2 1 6 . Highest Loss Streak 18 | . . 1 2 . . . . 1 3 1 . . 1 7 1 . . . . . 1 . . 2 2 9 18 3 To Critical Strikes 1 | . . . . . . . . . . . . . . 1 . . . . . . . . . . . . . . Average Backups 20 | 3 14 17 20 25 23 22 22 22 22 20 18 18 17 16 20 22 18 18 17 17 19 19 20 20 22 21 15 4 Power 1 | . 1 1 1 1 1 1 1 1 1 1 1 1 1 . 1 1 1 1 1 1 1 1 1 1 1 . . . Propulsion 2 | 1 4 5 4 5 4 4 3 3 2 . 2 2 2 . . 2 2 4 3 2 2 1 2 1 2 1 . . Utility 6 | . 3 5 5 8 7 6 6 7 8 9 7 8 7 5 4 7 4 4 5 6 7 7 7 8 9 9 5 . Weapon 8 | 1 5 6 8 9 9 10 9 9 8 6 5 5 5 8 12 10 8 8 6 6 6 8 9 8 8 8 8 2 Tool/Special . | . . . . . . . . . . . . . . . . . . . . . . . . . . . . . Unused Backups 77 | . . . 20 5 4 1 10 1 2 2 . . 4 1 3 2 1 2 3 . . 4 2 . 1 4 3 2 Power 11 | . . . 5 . . . 1 . 1 1 . . . . . 1 . . 1 . . . . . . 1 . . Propulsion 12 | . . . 2 1 1 . 2 . . . . . . . . 1 . 1 1 . . 1 2 . . . . . Utility 24 | . . . 6 1 3 1 1 1 . 1 . . 2 1 1 . . . . . . 2 . . 1 1 2 . Weapon 29 | . . . 7 3 . . 5 . 1 . . . 2 . 2 . 1 1 1 . . 1 . . . 2 1 2 Tool/Special 1 | . . . . . . . 1 . . . . . . . . . . . . . . . . . . . . . Average Slot Usage (%) 89 | . 99 99 99 100 100 100 99 98 98 89 84 82 83 78 91 69 85 85 83 86 73 81 81 82 78 80 70 21 Engine 5 | . 14 14 9 11 11 11 9 9 7 4 . . . . . . . . . . . . . . . . . . Reactor 2 | . . . . . . . . . . 2 7 7 5 . 6 6 6 6 6 6 6 5 5 5 3 6 6 . Treads 23 | . 27 28 32 33 33 33 36 36 29 20 15 15 15 15 20 16 13 14 14 13 13 17 17 14 15 15 8 . Device 12 | . 11 14 2 11 10 . 8 9 14 15 20 15 15 13 22 . 19 25 26 21 11 17 16 21 15 13 16 6 Storage 8 | . 14 14 11 11 11 11 9 9 7 7 7 7 7 7 6 6 6 6 6 6 6 5 5 5 5 4 3 . Processor 4 | . . . . . . . . . 6 7 7 7 7 7 8 6 6 6 6 6 6 10 11 10 10 9 7 7 Hackware 1 | . . . . . . . . . . 6 . . . 5 5 5 6 . . 4 1 . . 4 5 4 16 4 Protection 5 | . 2 . 8 . . 11 9 8 7 . 2 7 7 1 . 6 5 6 6 6 7 5 5 3 5 8 . . Energy Gun 3 | . 22 27 2 . . . . 8 . . . . . . . . . . . . . . . . . 7 . . Energy Cannon 2 | . . . 1 10 10 9 3 2 . . . . . . 1 . . . . . . . . . 4 . . . Ballistic Gun 13 | . 5 . 26 10 11 23 20 13 16 19 16 18 17 16 15 13 15 12 14 13 16 11 13 7 9 2 5 . Impact Weapon 1 | . . . 1 10 10 . . . . . . . . . . . . . . . . . . . . . . . Slashing Weapon 1 | . . . . . . . 2 . 5 . 5 2 4 . 1 . 1 . . 5 1 4 1 3 . . 1 . Peak Build Rating 154 | 7 11 11 23 23 26 27 37 41 44 68 69 70 70 83 82 87 78 97 108 110 125 132 134 128 126 154 128 46 Average Rating 60 | 5 9 10 19 21 22 26 33 36 39 53 68 68 67 67 70 83 77 82 95 109 114 127 122 124 120 139 102 27 On Entrance 62 | . 7 11 10 22 21 26 27 36 35 42 68 68 70 67 62 82 87 77 81 107 110 104 131 120 124 113 92 25 Avg Prop Armor Cover (%) 12 | . 12 . . . . . . . . . . . . . . . . . . . . . . . . . . . Naked Turns . | . . . . . . . . . . . . . . . . . . . . . . . . . . . . . Heaviest Build 208 | 15 52 52 102 107 102 106 109 107 113 109 119 117 121 153 159 159 121 172 136 136 207 128 133 137 137 208 137 16 Greatest Support 240 | 40 40 40 60 60 60 60 82 82 82 140 140 140 140 140 120 140 140 140 160 160 160 240 240 230 225 231 135 14 Greatest Overweight (x) 5 | 4 4 2 1 1 1 1 1 1 1 2 . . . 1 1 1 . 1 1 . 1 . . . . 1 1 5 Average Overweight (x) . | . 1 1 . 1 1 1 1 1 1 . . . . . . 1 . . . . . . . . . . . . Largest Inventory Capacity 25 | 8 20 20 25 25 25 25 25 25 25 25 25 25 25 25 25 25 25 25 25 25 25 25 25 25 25 25 25 10 Average Capacity 23 | 7 18 20 22 25 25 25 25 25 25 25 25 25 25 25 25 25 25 25 25 25 25 25 25 25 25 25 23 5 Most Carried 25 | 6 20 18 25 25 25 25 25 25 25 25 25 25 25 25 25 25 25 25 25 25 25 25 25 25 25 25 19 5 Average Carried 22 | 3 14 17 20 24 24 24 24 24 24 24 24 25 24 21 24 24 24 24 24 24 24 23 24 23 24 24 15 4 Final Capacity 25 | 8 20 20 25 25 25 25 25 25 25 25 25 25 25 25 25 25 25 25 25 25 25 25 25 25 25 25 5 5 Final Carried 25 | 6 18 17 25 25 25 25 25 25 25 25 25 25 25 25 25 25 25 25 24 25 23 25 24 25 25 16 5 5 Class Distribution -------------------- 19% | Scavenger-Mutant 18% | Scavenger-Tank 17% | Mutant 12% | Skirmisher 6% | Bothacker-Tank 5% | Tank 4% | Scavenger-Skirmisher 3% | Commander-Tank 3% | Scavenger-Assassin Dominant Class ---------------- Mutant | -10/Materials Mutant | -10/Mines Tank | -9/Materials Scavenger-Mutant | -9/Mines Scavenger-Mutant | -9/Exiles Skirmisher | -8/Mines Skirmisher | -8/Materials Skirmisher | -8/Garrison Scavenger-Mutant | -7/Factory Scavenger-Skirmisher | -7/Waste Mutant | -7/Factory Scavenger-Tank | -7/Garrison Scavenger-Mutant | -7/Factory Gunner | -7/Garrison Scavenger-Mutant | -6/Factory Scavenger-Tank | -6/Waste Scavenger-Tank | -6/Factory Scavenger-Tank | -6/Extension Commander-Tank | -6/Cetus Scavenger-Mutant | -6/Archives Scavenger-Tank | -6/Hub_04(d) Scavenger-Assassin | -5/Factory Scavenger-Tank | -5/Garrison Scavenger-Assassin | -4/Factory Scavenger-Tank | -4/Garrison Bothacker-Tank | -3/Research Bothacker-Assassin | -2/Research Mutant | -2/Quarantine Resources | -11 -10 -10 -9 -9 -9 -8 -8 -8 -7 -7 -7 -7 -7 -7 -6 -6 -6 -6 -6 -6 -6 -5 -5 -4 -4 -3 -2 -2 ----------- Run | Yrd Mat Min Mat Min Exi Min Mat Gar Fac Was Fac Gar Fac Gar Fac Was Fac Ext Cet Arc Hub Fac Gar Fac Gar Res Res Qua Matter Collected 16088 | 205 262 10 1290 231 . 82 832 1353 489 1139 61 363 999 1319 654 1097 3 1178 362 236 806 329 913 396 254 738 347 140 Remotely . | . . . . . . . . . . . . . . . . . . . . . . . . . . . . . Salvage Created 20360 | 38 576 143 1732 149 . 92 1746 1827 730 939 78 363 1135 1320 586 1584 83 1201 133 347 867 428 1757 290 470 1065 541 140 Parts 920 | 9 37 11 100 8 . 4 103 75 32 21 4 15 74 54 27 14 5 39 2 26 44 14 96 13 14 38 39 2 Haulers Intercepted 15 | . 2 . 6 . . . 6 . . . . . 1 . . . . . . . . . . . . . . . Recyclers Shooed 12 | 1 1 . 3 . . . 1 . . . . . 2 . 1 . . 2 . . . . . 1 . . . . Parts Field Recycled . | . . . . . . . . . . . . . . . . . . . . . . . . . . . . . Retrieved Matter . | . . . . . . . . . . . . . . . . . . . . . . . . . . . . . Parts Self-Destructed . | . . . . . . . . . . . . . . . . . . . . . . . . . . . . . Prevented . | . . . . . . . . . . . . . . . . . . . . . . . . . . . . . Parts Restored . | . . . . . . . . . . . . . . . . . . . . . . . . . . . . . Kills | -11 -10 -10 -9 -9 -9 -8 -8 -8 -7 -7 -7 -7 -7 -7 -6 -6 -6 -6 -6 -6 -6 -5 -5 -4 -4 -3 -2 -2 ------- Run | Yrd Mat Min Mat Min Exi Min Mat Gar Fac Was Fac Gar Fac Gar Fac Was Fac Ext Cet Arc Hub Fac Gar Fac Gar Res Res Qua Combat Hostiles Destroyed 286 | . 12 3 27 1 . 1 24 35 8 4 . 8 10 31 8 6 2 16 1 1 11 4 30 4 7 20 12 . Melee 3 | . . . . . . . . . . . . . . . . . . 1 . . . 1 . 1 . . . . Guns 204 | . 11 2 19 . . . 16 30 7 4 . 8 10 19 7 6 . 10 1 . 7 3 21 2 6 9 6 . Cannons 39 | . . . 5 1 . 1 8 1 1 . . . . 4 1 . . 3 . 1 4 . . 1 1 7 . . AOE 34 | . 1 . 2 . . . . 4 . . . . . 8 . . 1 . . . . . 8 . . 4 6 . Classes Destroyed 21 | 1 4 1 4 . . 1 1 . 1 1 . . 2 1 . . . 1 . . . . . . . 3 . . Worker 15 | . . 1 4 1 . 2 . . 2 . . . 1 . . . 1 . . . 1 1 . 1 . . . . Builder 9 | . . . 2 1 . . 1 . . . . . 4 . . . . . . . . . . . . . 1 . Tunneler 4 | 2 . . . 2 . . . . . . . . . . . . . . . . . . . . . . . . Hauler 15 | . 2 . 6 . . . 6 . . . . . 1 . . . . . . . . . . . . . . . Recycler 18 | . . . 2 1 . . 2 . 2 . 1 . 4 . 1 . . 2 . . 1 1 . . . . . 1 Mechanic 1 | . . . . . . . . . . . . . 1 . . . . . . . . . . . . . . . Operator 13 | . . . . . . . 1 . 1 . 1 . . . . . . 1 . 8 . 1 . . . . . . Watcher 17 | . 2 . 3 . . . 2 . 2 . . . 1 2 . . . 1 1 . . 1 1 . . 1 . . Swarmer 36 | . 3 1 6 . . . . . . . . . . 3 . . . . . . . . 14 . . 5 4 . Grunt 114 | . 9 2 11 1 . . 14 15 4 . . 8 3 15 2 . . 9 . . . 2 11 . 1 5 2 . Brawler 5 | . . . 1 . . . 1 . . . . . . 3 . . . . . . . . . . . . . . Duelist 3 | . . . . . . . . . 1 . . . 1 1 . . . . . . . . . . . . . . Sentry 63 | . . . 9 . . . 8 17 2 . . . 4 4 2 . 2 6 . 1 2 . 1 1 2 2 . . Demolisher 2 | . . . . . . . . . . . . . . . . . . . . . . . . . . 2 . . Specialist 2 | . . . . . . . . . . . . . . 1 . . . . . . . . 1 . . . . . Hunter 20 | . . . . . . 1 1 3 1 . . . . . 1 . . . . . 4 . 3 2 4 . . . Programmer 18 | . . . . . . . . . . . . . 2 3 3 . . . . . 1 2 . 1 . . 6 . Behemoth 1 | . . . . . . . . . . . . . . . . . . 1 . . . . . . . . . . Compactor 10 | . . . . . . . . . . 4 . . . . . 6 . . . . . . . . . . . . Cetus Guard 1 | . . . . . . . . . . . . . . . . . . . 1 . . . . . . . . . Enhanced Grunt 1 | . . . . . . . . . . . . . . . . . . . . . 1 . . . . . . . Lightning 4 | . . . . . . . . . . . . . . . . . . . . . 4 . . . . . . . Striker 5 | . . . . . . . . . . . . . . . . . . . . . . . . . . 5 . . Executioner 1 | . . . . . . . . . . . . . . . . . . . . . . . . . . 1 . . Savage 1 | . . . . . . . . . . . . . . 1 . . . . . . . . . . . . . . Best Kill Streak 12 | 1 3 2 4 1 . 1 5 5 4 1 1 5 7 8 2 1 1 3 2 4 4 3 12 4 4 6 5 1 Combat Bots Only 12 | . 3 2 3 1 . 1 3 5 3 1 . 5 2 8 2 1 1 3 1 1 4 2 12 2 4 6 5 . Max Kills in Single Turn 4 | 1 2 1 2 1 . 1 1 2 4 1 1 1 1 3 1 1 1 1 1 1 2 1 2 1 1 3 2 1 Gunslinging 1 | . 1 . 1 . . . . . . . . . . . . . . . . . . . 1 . . 1 1 . Exploded 3 | . 1 . 2 . . . . 2 . . . . . 3 . . 1 . . . . . 2 . . 2 2 . Melee 1 | . . . . . . . . . . . . . . . . . . 1 . . . 1 . 1 . . . . Uniques/NPCs Destroyed 1 | . . . . . . . . . . . . . . . . . . . 1 . . . . . . . . . A7 (-6/Cetus) Combat | -11 -10 -10 -9 -9 -9 -8 -8 -8 -7 -7 -7 -7 -7 -7 -6 -6 -6 -6 -6 -6 -6 -5 -5 -4 -4 -3 -2 -2 -------- Run | Yrd Mat Min Mat Min Exi Min Mat Gar Fac Was Fac Gar Fac Gar Fac Was Fac Ext Cet Arc Hub Fac Gar Fac Gar Res Res Qua Hostile Shots Fired 2415 | . 48 18 85 13 . 4 70 134 105 2 . 35 156 245 90 . 107 89 18 4 261 24 167 72 113 229 220 106 Missed 780 | . 17 7 18 1 . 1 21 46 37 . . 7 55 96 28 . 53 20 8 2 62 5 53 28 27 73 70 45 Hits 1635 | . 31 11 67 12 . 3 49 88 68 2 . 28 101 149 62 . 54 69 10 2 199 19 114 44 86 156 150 61 Melee 52 | . . . . . . . . . 4 2 . . 3 5 . . . . . . . . . . . 38 . . Projectile 1583 | . 31 11 67 12 . 3 49 88 64 . . 28 98 144 62 . 54 69 10 2 199 19 114 44 86 118 150 61 AOE 2 | . . . . . . . . . . . . . . . . . . . . . . . . . . 2 . . Critical Strikes 75 | . 1 . 2 . . . 1 2 1 1 . 1 4 7 1 . 1 2 2 . 14 1 4 4 1 13 10 2 Actively Blocked 9 | . . . . . . . . . . . . . . . . . . . . . . . . . 1 1 5 2 Part Disruptions 2 | . . . . . . . . . . . . . . . . . . . . . 1 . . . . . 1 . Damage Taken 26778 | . 429 152 924 170 . 46 756 1400 804 103 . 451 947 2130 727 . 478 882 284 60 1937 354 2296 752 1253 5231 2897 1315 Core 3193 | . 101 36 114 44 . 16 67 95 87 . . 34 34 165 37 . 80 30 . 15 119 5 159 53 89 357 572 884 Absorbed by Shields 436 | . . . . . . . . 84 . . . . . 9 . . . 85 59 . . . . . 199 . . . Redirected to Shielding 5 | . 5 . . . . . . . . . . . . . . . . . . . . . . . . . . . Ignored by Resistances 3133 | . . . . . . . . . . . . . . . 85 . . . . . 2161 160 . 121 . . 606 . Regen/Repaired (Parts) 1093 | . 100 . 88 . . . 31 . . . . . 62 . . . . 323 . . . . . . . 489 . . Core Remaining (%) 70 | 100 . 45 . . . 56 . 70 . . . . . 54 . . . . . . 66 . 83 . 87 72 . . Volleys Fired 1217 | 4 41 14 88 47 . 4 77 95 35 68 . 29 53 87 29 115 24 59 68 11 41 11 64 20 38 53 37 5 Largest 3 | 2 2 2 3 1 . 3 3 3 3 3 . 3 3 3 3 3 1 3 3 3 3 3 3 3 3 3 3 1 Hottest 207 | 70 90 90 131 60 . 119 110 175 119 75 . 78 81 118 145 115 85 145 98 158 160 100 165 188 188 207 113 113 Shots Fired 2951 | 8 82 25 233 47 . 12 217 277 99 181 1 76 141 221 79 207 25 163 129 13 133 29 158 58 98 161 73 5 Gun 2463 | 8 82 25 195 . . 8 163 256 97 181 1 74 138 199 63 195 1 116 93 2 118 29 141 52 60 109 57 . Cannon 410 | . . . 24 47 . 4 54 15 2 . . . 3 15 16 6 23 34 36 11 15 . . 5 38 48 9 5 Launcher 32 | . . . 2 . . . . 6 . . . 2 . 7 . . . . . . . . 9 . . 2 4 . Special 46 | . . . 12 . . . . . . . . . . . . 6 1 13 . . . . 8 1 . 2 3 . Kinetic 2226 | 4 25 . 159 23 . 8 163 160 97 181 1 74 138 208 63 195 1 128 93 2 132 29 115 44 58 68 57 . Thermal 509 | 4 25 . 36 24 . . 54 96 . . . . 3 6 16 6 23 22 36 11 1 . . 5 38 89 9 5 Explosive 29 | . . . 2 . . . . 3 . . . 2 . 7 . . . . . . . . 9 . . 2 4 . Electromagnetic 153 | . 32 25 36 . . 4 . 18 2 . . . . . . . . . . . . . 26 8 2 . . . Robot Hit Streak 27 | 3 15 7 16 5 . 5 9 25 17 22 . 7 7 13 10 19 2 27 7 11 11 12 16 9 12 18 19 9 Robot Miss Streak 6 | 2 3 4 4 5 . 2 4 3 3 3 . 4 3 6 6 5 1 3 4 1 4 3 3 2 2 4 3 . Penetration Max 1 | . . . . . . . . . . . . . 1 . 1 1 . 1 1 . 1 . 1 . 1 . 1 . Secondary Targets 32 | . 1 . 1 . . . . 2 2 . . 2 2 5 1 1 . 1 . . 2 1 7 . . 3 1 . Max Gunslinging Chain 1 | . 1 . 1 . . . . 1 1 . . 1 1 1 1 1 . 1 . . 1 1 1 . . 1 1 . Autonomous 77 | . . . . . . . . . . . . . . 9 . . . 12 . . 14 . . . . 42 . . Shots Hit Robots 1875 | 4 58 15 129 15 . 7 118 163 70 150 2 47 90 129 52 146 2 108 78 20 88 25 110 41 53 106 46 3 Core Hits 739 | 2 29 8 52 5 . 4 59 70 25 18 1 18 40 63 26 24 2 33 21 8 35 12 74 11 21 42 35 1 Critical Kills 23 | . . . 2 3 . . . . . 1 . . 1 . . . . 3 1 1 5 1 3 . 1 . 1 . Critical Parts Destroyed 39 | . . . . 5 . . 1 . . . . . 1 4 1 . . 2 1 . 16 1 2 3 1 . 1 . Critical Strikes 83 | . 2 . 2 8 . . 1 6 . 1 . . 2 6 1 . . 5 2 1 23 2 6 4 2 6 3 . Burn 10 | . 2 . . . . . . 5 . . . . . . . . . . . . . . . . . 3 . . Meltdown 4 | . . . . . . . . . . . . . . . . . . 2 1 1 . . . . . . . . Destroy 62 | . . . 2 7 . . 1 1 . 1 . . 2 5 1 . . 3 1 . 22 2 5 3 2 1 3 . Blast 4 | . . . . . . . . . . . . . . 1 . . . . . . 1 . . . . 2 . . Corrupt 1 | . . . . . . . . . . . . . . . . . . . . . . . . 1 . . . . Smash 1 | . . . . 1 . . . . . . . . . . . . . . . . . . . . . . . . Sever 1 | . . . . . . . . . . . . . . . . . . . . . . . 1 . . . . . Melee Attacks 249 | . . . 30 20 . . 24 19 26 5 6 . 27 3 14 . 5 1 . 8 1 17 27 6 3 . 5 2 Impact 53 | . . . 30 20 . . 3 . . . . . . . . . . . . . . . . . . . . . Slashing 190 | . . . . . . . 21 19 26 . 6 . 27 3 13 . 5 1 . 8 1 17 27 6 3 . 5 2 Piercing . | . . . . . . . . . . . . . . . . . . . . . . . . . . . . . Sneak Attacks 29 | . . . 4 4 . . 6 . . . 2 . 2 . 1 . . . . 8 . . 1 1 . . . . Combat Hostiles . | . . . . . . . . . . . . . . . . . . . . . . . . . . . . . Follow-up Attacks . | . . . . . . . . . . . . . . . . . . . . . . . . . . . . . Damage Inflicted 55126 | 48 859 199 2654 608 . 151 2600 3550 1567 2652 143 1030 2237 3966 1310 3782 481 3300 2797 1265 2583 881 5155 1338 1334 5762 2754 120 Guns 34247 | 48 759 199 1874 . . 59 1369 2874 1164 2652 . 894 2005 2362 1057 3630 . 1879 1874 28 1849 539 2264 1111 666 1606 1485 . Cannons 10555 | . . . 340 257 . 92 752 122 62 . . . . 664 252 152 30 1403 923 354 708 . . 117 668 3541 . 118 Explosions 6065 | . 100 . 147 . . . . 554 279 . . 136 . 940 . . 449 . . . . 136 1520 . . 535 1269 . Melee 4028 | . . . 235 351 . . 453 . 62 . 143 . 214 . . . . . . 883 . 206 1371 110 . . . . Ramming 207 | . . . 34 . . . 26 . . . . . 18 . 1 . 2 18 . . 26 . . . . 80 . 2 Kinetic 35939 | 11 244 . 1570 257 . 59 1369 1709 1164 2652 . 894 2005 2946 1057 3630 . 2826 1874 28 2516 539 1800 953 638 3713 1485 . Thermal 8122 | 37 286 . 393 . . . 752 1165 279 . . . . 80 252 152 479 456 923 354 41 136 . 117 668 1434 . 118 Explosive 4899 | . . . 118 . . . . 381 . . . 136 . 940 . . . . . . . . 1520 . . 535 1269 . Electromagnetic 1931 | . 329 199 304 . . 92 . 295 62 . . . . . . . . . . . . . 464 158 28 . . . Impact 586 | . . . 235 351 . . . . . . . . . . . . . . . . . . . . . . . . Slashing 3442 | . . . . . . . 453 . 62 . 143 . 214 . . . . . . 883 . 206 1371 110 . . . . Piercing . | . . . . . . . . . . . . . . . . . . . . . . . . . . . . . Highest Corruption 33 | . . 6 . . . . 2 10 . 24 24 24 25 33 5 7 7 7 7 7 10 . . . . 4 13 13 Average Corruption 11 | . . 6 . . . . 1 5 . 16 24 24 24 31 3 5 7 7 7 4 1 . . . . 1 3 13 Corruption Purged 7 | . . . . . . . . . . . . . . . . . . . . 7 . . . . . . . . Corruption Blocked . | . . . . . . . . . . . . . . . . . . . . . . . . . . . . . Effects 514 | . . 1 . . . . 12 53 . 24 14 18 85 113 21 38 22 66 21 5 4 . . . . . 8 9 Message Errors 127 | . . . . . . . 5 19 . 6 2 8 17 26 3 7 4 15 7 3 2 . . . . . 1 2 Matter Fused 110 | . . 1 . . . . 2 16 . 3 1 2 21 24 3 9 5 13 3 1 . . . . . . 3 3 Heat Flow Errors 61 | . . . . . . . 1 3 . 3 5 . 11 11 4 6 4 10 3 . . . . . . . . . Energy Discharges 64 | . . . . . . . 2 5 . 1 2 1 13 14 4 6 3 9 1 . 1 . . . . . 1 1 Parts Rejected 3 | . . . . . . . . . . . . . . . . 1 . . 2 . . . . . . . . . Parts Fused 8 | . . . . . . . . 1 . . . 1 1 1 . . . 3 1 . . . . . . . . . Data Loss (minor) 52 | . . . . . . . 2 4 . 1 2 2 8 12 2 5 2 6 3 . . . . . . . 1 2 Data Loss (major) 23 | . . . . . . . . . . 1 1 . 1 5 2 3 2 7 . 1 . . . . . . . . Misfires 14 | . . . . . . . . 3 . . 1 . 3 3 2 . 1 1 . . . . . . . . . . Alerts 8 | . . . . . . . . . . . . 1 1 2 1 . 1 1 . . 1 . . . . . . . Misdirections 5 | . . . . . . . . . . 1 . . . 2 . . . . . . . . . . . . 1 1 Weapon Failures 39 | . . . . . . . . 2 . 8 . 3 9 13 . 1 . 1 1 . . . . . . . 1 . Overload Shots 18 | . . . . . . . . . . . . . . . . . . . . . . . . . . 18 . . Effects 2 | . . . . . . . . . . . . . . . . . . . . . . . . . . 2 . . Energy Bleed 1 | . . . . . . . . . . . . . . . . . . . . . . . . . . 1 . . Short Circuit 1 | . . . . . . . . . . . . . . . . . . . . . . . . . . 1 . . Overflow Damage 1680 | . . . 110 65 . . 116 5 115 . 51 . 61 62 2 . 60 23 16 456 14 . . 55 . 338 120 11 Projectiles 449 | . . . . . . . 16 . . . . . . 19 2 . . 23 16 . 14 . . 18 . 330 . 11 Explosions 351 | . . . . . . . . 5 115 . . . . 43 . . 60 . . . . . . . . 8 120 . Melee 880 | . . . 110 65 . . 100 . . . 51 . 61 . . . . . . 456 . . . 37 . . . . Knockbacks 36 | . . . 2 1 . . . . . . . . . . . . . . . . 5 . . . . 28 . . Impact 3 | . . . 2 1 . . . . . . . . . . . . . . . . . . . . . . . . Kinetic 31 | . . . . . . . . . . . . . . . . . . . . . 5 . . . . 26 . . Secondary 2 | . . . . . . . . . . . . . . . . . . . . . . . . . . 2 . . Self-Inflicted Damage 435 | . 53 . 43 . . . . . . . . . . 55 . . . . . . . 130 96 . . . 58 . Shots 8 | . 1 . 1 . . . . . . . . . . 1 . . . . . . . 2 2 . . . 1 . Rammed 20 | . . . 6 . . . 2 . . . . . 1 . 1 . . 2 . . 1 . . . . 5 . 2 Targets Rammed 21 | . . . 6 . . . 2 . . . . . 1 . 1 . 1 2 . . 1 . . . . 5 . 2 Kicked . | . . . . . . . . . . . . . . . . . . . . . . . . . . . . . Crushed 1 | . . . . . . . . . . . . . . . . . 1 . . . . . . . . . . . Highest Temperature 511 | 27 113 206 420 150 . 136 242 212 415 368 275 339 248 511 263 391 249 265 241 89 350 189 178 90 51 96 . . Average Temperature 95 | 12 36 73 87 43 . 55 24 66 127 88 102 116 80 159 60 131 84 79 69 41 134 72 42 43 24 30 . . Received Heat Transfer 5318 | . 141 63 393 90 . . 342 433 306 . . 270 270 891 111 . 102 330 18 9 288 45 333 36 100 333 261 153 Effects 27 | . . . 3 . . . . 1 4 . . 3 . 9 . 5 . . . . 2 . . . . . . . Shutdowns 5 | . . . 1 . . . . . 1 . . . . 2 . 1 . . . . . . . . . . . . Energy Bleed 8 | . . . 1 . . . . 1 2 . . 1 . 1 . 1 . . . . 1 . . . . . . . Interference 6 | . . . . . . . . . . . . 2 . 3 . . . . . . 1 . . . . . . . Matter Decay 1 | . . . . . . . . . . . . . . . . 1 . . . . . . . . . . . . Short Circuit 2 | . . . . . . . . . . . . . . 1 . 1 . . . . . . . . . . . . Damage (minor) 3 | . . . 1 . . . . . 1 . . . . . . 1 . . . . . . . . . . . . Damage (major) 2 | . . . . . . . . . . . . . . 2 . . . . . . . . . . . . . . Siege Activations . | . . . . . . . . . . . . . . . . . . . . . . . . . . . . . Martial Activations . | . . . . . . . . . . . . . . . . . . . . . . . . . . . . . Shielding Activations . | . . . . . . . . . . . . . . . . . . . . . . . . . . . . . Robots Disrupted . | . . . . . . . . . . . . . . . . . . . . . . . . . . . . . Combat Hostiles . | . . . . . . . . . . . . . . . . . . . . . . . . . . . . . Robots Corrupted 8 | . . 1 5 1 . . . . . . . . . . . . . . . . . . 1 . . . . . Combat Hostiles 3 | . . 1 1 . . . . . . . . . . . . . . . . . . . 1 . . . . . Parts Fried 12 | . . 1 7 1 . . . . . . . . . . . . . . . . . . 2 1 . . . . Impact Corruptions 8 | . . . 5 3 . . . . . . . . . . . . . . . . . . . . . . . . Robots Melted 5 | . . . . . . . . . . . . . . . . . 1 2 1 1 . . . . . . . . Combat Hostiles 3 | . . . . . . . . . . . . . . . . . 1 2 . . . . . . . . . . Parts Melted 24 | . 1 . . . . . . 10 1 . . . . . 1 . . 2 1 3 . . . . . 5 . . Heat Transferred 11195 | 111 803 . 692 . . . 1221 3150 200 . . . . 111 296 185 287 555 1001 550 . 100 . . . 1822 . 111 Parts Sabotaged . | . . . . . . . . . . . . . . . . . . . . . . . . . . . . . Parts Stolen . | . . . . . . . . . . . . . . . . . . . . . . . . . . . . . Parts Stripped . | . . . . . . . . . . . . . . . . . . . . . . . . . . . . . Power Chain Reactions 2 | . 1 . 1 . . . . . . . . . . . . . . . . . . . . . . . . . Alert | -11 -10 -10 -9 -9 -9 -8 -8 -8 -7 -7 -7 -7 -7 -7 -6 -6 -6 -6 -6 -6 -6 -5 -5 -4 -4 -3 -2 -2 ------- Run | Yrd Mat Min Mat Min Exi Min Mat Gar Fac Was Fac Gar Fac Gar Fac Was Fac Ext Cet Arc Hub Fac Gar Fac Gar Res Res Qua Maximum Alert Level 5 | . . . . . . . 1 5 3 1 . . 1 4 2 . . 2 1 1 1 1 4 2 2 1 1 . Low Security (%) 67 | 100 100 100 100 100 . 100 96 7 . 55 100 100 76 2 . 100 100 74 . 60 48 52 10 27 18 95 97 100 Level 1 13 | . . . . . . . 3 23 . 44 . . 23 10 34 . . 23 100 39 51 47 1 26 58 4 2 . Level 2 8 | . . . . . . . . 13 . . . . . 44 65 . . 1 . . . . 34 46 23 . . . Level 3 7 | . . . . . . . . 22 100 . . . . 34 . . . . . . . . 35 . . . . . Level 4 2 | . . . . . . . . 22 . . . . . 7 . . . . . . . . 17 . . . . . Level 5 . | . . . . . . . . 11 . . . . . . . . . . . . . . . . . . . . High Security . | . . . . . . . . . . . . . . . . . . . . . . . . . . . . . Max Security . | . . . . . . . . . . . . . . . . . . . . . . . . . . . . . Peak Influence 1925 | 5 107 76 181 51 . 30 230 1925 1048 305 60 185 251 1196 628 136 118 464 388 300 386 274 1313 688 456 256 284 51 Initial 1010 | . . 31 . 51 . . . 44 1010 305 60 . 96 170 627 136 . 33 259 124 . 177 57 688 125 256 85 9 Average 235 | . 27 9 91 2 . . 73 869 941 191 15 84 81 693 452 16 28 123 310 157 182 186 771 388 290 53 55 7 Influence Increases 12879 | 10 442 166 1066 104 . 40 808 1891 392 . 14 185 495 1156 327 1 201 909 339 266 721 277 1256 207 371 586 492 157 Destroy 0b10 Robot/C 6060 | . 240 100 620 40 . 20 480 700 160 . . 160 200 620 160 . 40 420 160 80 260 80 640 100 140 400 240 . Destroy 0b10 Robot/NC 530 | 10 20 5 90 25 . 10 60 10 35 . 10 . 60 10 5 . 5 25 10 45 25 20 30 5 . 5 5 5 Destroy Leader 1028 | . 68 20 170 10 . 10 136 20 24 . . 10 84 40 70 . . 42 . . 70 22 60 20 20 92 40 . Allied During Kill 649 | . . 11 18 3 . . . . . . . . . 13 . . . 248 119 125 86 . 25 1 . . . . Successful Hack 336 | . 20 . 32 . . . 28 30 30 . . . 10 23 25 . 14 8 . . . 27 . 25 14 24 . 26 Select Force Hacks 110 | . 60 . . . . . . . . . . . . . . . . . . . 50 . . . . . . . Disable Machine 885 | . . 30 30 . . . 45 30 60 . . . 75 . 45 . 75 120 15 15 150 90 30 15 . . 30 30 Anti-Garrison Action 1850 | . . . . . . . . 1050 . . . . . 400 . . . . . . . . 250 . 150 . . . Destroy Structure 936 | . 4 . 61 26 . . 29 21 53 . 4 . 21 50 22 1 37 16 35 1 65 38 161 26 32 50 177 6 Partial Spotted 45 | . . . . . . . . . . . . . . . . . 15 . . . 15 . . . 15 . . . Lose Combat Pursuer 450 | . 30 . 45 . . . 30 30 30 . . 15 45 . . . 15 30 . . . . 60 15 . 15 . 90 Influence Decreases 12833 | 10 359 249 933 237 . 40 740 34 1443 787 101 . 437 203 1132 392 132 514 491 578 359 557 25 1341 94 889 627 129 Entered New Map 4250 | . . 52 . 82 . . . 24 915 569 27 . 89 73 569 255 . 36 205 188 . 185 25 625 54 200 68 9 Time Decay 7027 | 10 359 187 714 135 . 40 653 . 498 198 74 . 338 . 553 137 132 378 286 390 239 362 . 356 . 589 309 90 Lost Part 620 | . . 10 20 . . . . 10 30 20 . . . 110 10 . . . . . 20 . . 20 40 90 210 30 Lost Ally 410 | . . . 60 20 . . . . . . . . 10 20 . . . 100 . . 100 10 . 40 . 10 40 . Purge Threat 526 | . . . 139 . . . 87 . . . . . . . . . . . . . . . . 300 . . . . Squads Dispatched 50 | . 4 . . 1 . . 2 . 2 . 2 . 5 . 8 . 2 2 . . 4 2 . 2 . 7 3 4 Investigation 12 | . 4 . . 1 . . . . . . . . 1 . . . . 2 . . 2 . . . . 2 . . Extermination 13 | . . . . . . . . . . . . . 3 . 3 . 1 . . . 1 1 . 1 . . 2 1 Reinforcement 21 | . . . . . . . 2 . 1 . 2 . 1 . 2 . 1 . . . 1 1 . 1 . 5 1 3 Assault 1 | . . . . . . . . . 1 . . . . . . . . . . . . . . . . . . . Garrison 3 | . . . . . . . . . . . . . . . 3 . . . . . . . . . . . . . Intercept . | . . . . . . . . . . . . . . . . . . . . . . . . . . . . . Searches Triggered . | . . . . . . . . . . . . . . . . . . . . . . . . . . . . . Construction Impeded 3 | . . . . . . . . . . . . . . . 2 . 1 . . . . . . . . . . . Haulers Reinforced 2 | . . . . . . . . . . . . . 1 . . . . . . . . . . . . 1 . . Active Scanning Responses . | . . . . . . . . . . . . . . . . . . . . . . . . . . . . . Cargo Convoy Interrupts . | . . . . . . . . . . . . . . . . . . . . . . . . . . . . . Stealth | -11 -10 -10 -9 -9 -9 -8 -8 -8 -7 -7 -7 -7 -7 -7 -6 -6 -6 -6 -6 -6 -6 -5 -5 -4 -4 -3 -2 -2 --------- Run | Yrd Mat Min Mat Min Exi Min Mat Gar Fac Was Fac Gar Fac Gar Fac Was Fac Ext Cet Arc Hub Fac Gar Fac Gar Res Res Qua Distress Signals 24 | . 1 . 2 . . . 5 . . . . . 2 . . . . 2 2 . . . . . . 7 . 3 Communications Jammed . | . . . . . . . . . . . . . . . . . . . . . . . . . . . . . Distress Signals . | . . . . . . . . . . . . . . . . . . . . . . . . . . . . . Times Spotted 471 | . 15 5 39 2 . 1 42 35 14 6 2 8 18 32 9 6 3 38 10 8 19 9 39 9 10 54 21 17 Peak Tracking Total 15 | . 3 3 6 2 . 1 4 6 4 2 3 4 5 9 2 2 3 7 5 2 4 3 8 2 4 15 8 8 Tactical Retreats 23 | . 2 . 3 . . . 2 1 2 1 . 1 2 . . . 1 1 . . . . 3 1 . 1 . 2 Traps | -11 -10 -10 -9 -9 -9 -8 -8 -8 -7 -7 -7 -7 -7 -7 -6 -6 -6 -6 -6 -6 -6 -5 -5 -4 -4 -3 -2 -2 ------- Run | Yrd Mat Min Mat Min Exi Min Mat Gar Fac Was Fac Gar Fac Gar Fac Was Fac Ext Cet Arc Hub Fac Gar Fac Gar Res Res Qua Traps Triggered 32 | . 3 . . . . . 3 13 1 . . . . 3 2 . . 2 . . . . . 1 . 3 1 . Indirectly . | . . . . . . . . . . . . . . . . . . . . . . . . . . . . . Trap Hack Attempts . | . . . . . . . . . . . . . . . . . . . . . . . . . . . . . Triggered . | . . . . . . . . . . . . . . . . . . . . . . . . . . . . . Disarmed 6 | . . . . . . . . . . . . . . . . . . . . . . . . 6 . . . . Reprogrammed . | . . . . . . . . . . . . . . . . . . . . . . . . . . . . . Reused . | . . . . . . . . . . . . . . . . . . . . . . . . . . . . . Traps Extracted . | . . . . . . . . . . . . . . . . . . . . . . . . . . . . . Installed . | . . . . . . . . . . . . . . . . . . . . . . . . . . . . . Triggered . | . . . . . . . . . . . . . . . . . . . . . . . . . . . . . Most Traps Carried 4 | . . . . . . . . 4 4 4 4 4 4 4 . . . . . . . . . . . . . . Machines | -11 -10 -10 -9 -9 -9 -8 -8 -8 -7 -7 -7 -7 -7 -7 -6 -6 -6 -6 -6 -6 -6 -5 -5 -4 -4 -3 -2 -2 ---------- Run | Yrd Mat Min Mat Min Exi Min Mat Gar Fac Was Fac Gar Fac Gar Fac Was Fac Ext Cet Arc Hub Fac Gar Fac Gar Res Res Qua Machines Disabled 79 | . . 2 2 . . . 3 9 4 . . . 5 5 3 . 5 9 1 1 10 6 5 1 4 . 2 2 Max in Single Turn 4 | . . 1 1 . . . 1 1 3 . . . 1 1 1 . 4 1 1 . 2 4 1 1 1 . 1 1 Garrison Access 4 | . . . . . . . . . 1 . . . . . . . . . . . . . . . . 2 . 1 Garrison Relay 16 | . . . . . . . . 6 . . . . . 4 . . . . . . . . 3 . 3 . . . Network Hub 2 | . . . . . . . . . . . . . . . . . . . . . 2 . . . . . . . Machines Repaired . | . . . . . . . . . . . . . . . . . . . . . . . . . . . . . Machines Dismantled 8 | . . . . . . . . . . . . . . . . . 1 5 1 . 1 . . . . . . . Machines Sabotaged 1 | . . . . . . . . . . . . . . . . . . . . . 1 . . . . . . . Overloaded Fab Kills . | . . . . . . . . . . . . . . . . . . . . . . . . . . . . . Hacking | -11 -10 -10 -9 -9 -9 -8 -8 -8 -7 -7 -7 -7 -7 -7 -6 -6 -6 -6 -6 -6 -6 -5 -5 -4 -4 -3 -2 -2 --------- Run | Yrd Mat Min Mat Min Exi Min Mat Gar Fac Was Fac Gar Fac Gar Fac Was Fac Ext Cet Arc Hub Fac Gar Fac Gar Res Res Qua Machines Accessed 88 | . 9 . 12 1 2 . 10 3 4 . 2 . 6 4 4 . 1 4 . 1 2 3 . 5 3 5 2 5 Terminals 60 | . 6 . 10 . . . 7 3 3 . 1 . 3 4 2 . 1 3 . . 2 2 . 3 3 1 2 4 Fabricators . | . . . . . . . . . . . . . . . . . . . . . . . . . . . . . Repair Stations 7 | . 1 . 1 . . . 1 . . . . . 1 . . . . 1 . . . . . 1 . 1 . . Recycling Units 5 | . 2 . . . . . . . . . . . 1 . 2 . . . . . . . . . . . . . Scanalyzers 3 | . . . 1 . . . 1 . . . . . . . . . . . . . . . . . . 1 . . Garrison Access 9 | . . . . . . . 1 . 1 . 1 . 1 . . . . . . . . 1 . 1 . 2 . 1 Total Hacks 239 | . 19 . 52 1 2 . 28 8 7 . 3 . 19 6 11 . 2 15 . 4 3 9 . 16 6 12 3 13 Successful 116 | . 11 . 31 1 2 . 16 2 3 . 1 . 8 2 5 . 1 4 . 4 2 2 . 9 1 5 1 5 Failed 121 | . 8 . 20 . . . 12 6 4 . 2 . 11 4 6 . 1 11 . . 1 7 . 7 5 6 2 8 Catastrophic 27 | . 2 . . . . . 3 2 1 . . . . 1 1 . 1 3 . . 1 2 . 2 3 1 1 3 Database Lockouts 2 | . . . 1 . . . . . . . . . . . . . . . . . . . . . . 1 . . Manual 97 | . 16 . 24 . 1 . 17 . 3 . . . 2 . 3 . . 8 2 . 3 8 . 3 . 1 . 6 Terminals 162 | . 14 . 36 . . . 22 8 6 . 2 . 7 6 5 . 2 11 . . 3 8 . 10 6 1 3 12 Fabricators . | . . . . . . . . . . . . . . . . . . . . . . . . . . . . . Repair Stations 24 | . 3 . 2 . . . 2 . . . . . 4 . . . . 4 . . . . . 5 . 4 . . Recycling Units 15 | . 2 . . . . . . . . . . . 7 . 6 . . . . . . . . . . . . . Scanalyzers 22 | . . . 14 . . . 3 . . . . . . . . . . . . . . . . . . 5 . . Garrison Access 9 | . . . . . . . 1 . 1 . 1 . 1 . . . . . . . . 1 . 1 . 2 . 1 Terminal Hacks 47 | . 3 . 10 1 2 . 6 2 . . . . 1 2 1 . 1 2 . 4 . . . 6 1 . 1 4 Record 7 | . . . . . 1 . . . . . . . . . . . . . . 4 . . . . . . . 2 Robot Analysis 5 | . 1 . 2 . . . . . . . . . . . 1 . . 1 . . . . . . . . . . Open Door 4 | . . . . 1 . . . . . . . . . 1 . . . . . . . . . . . . 1 1 Open DSF 1 | . . . . . . . . . . . . . . . . . . . . . . . . 1 . . . . Garrison Index 1 | . . . . . . . . . . . . . . . . . . . . . . . . 1 . . . . Alert Level 2 | . . . 1 . . . 1 . . . . . . . . . . . . . . . . . . . . . Unreport Threat 4 | . . . 1 . . . 1 . . . . . . . . . . . . . . . . 2 . . . . Locate Traps 10 | . 1 . 3 . . . 2 . . . . . 1 . . . 1 . . . . . . 1 . . . 1 Disarm Traps 1 | . . . . . . . . . . . . . . . . . . . . . . . . 1 . . . . Hauler Manifests 5 | . 1 . 2 . . . 2 . . . . . . . . . . . . . . . . . . . . . Zone Layout 2 | . . . 1 . . . . . . . . . . . . . . 1 . . . . . . . . . . Garrison Registry 3 | . . . . . . . . 1 . . . . . 1 . . . . . . . . . . 1 . . . Security Stations 1 | . . . . . . . . 1 . . . . . . . . . . . . . . . . . . . . Proto ID Catalog 1 | . . . . . 1 . . . . . . . . . . . . . . . . . . . . . . . Fabricator Hacks . | . . . . . . . . . . . . . . . . . . . . . . . . . . . . . Repair Station Hacks 13 | . 3 . 2 . . . 2 . . . . . 2 . . . . 2 . . . . . 1 . 1 . . Scan Component 8 | . 2 . 1 . . . 1 . . . . . 1 . . . . 1 . . . . . 1 . 1 . . Repair 5 | . 1 . 1 . . . 1 . . . . . 1 . . . . 1 . . . . . . . . . . Recycling Unit Hacks 5 | . . . . . . . . . . . . . 3 . 2 . . . . . . . . . . . . . Process 3 | . . . . . . . . . . . . . 1 . 2 . . . . . . . . . . . . . Report Inventory 1 | . . . . . . . . . . . . . 1 . . . . . . . . . . . . . . . Retrieve Matter 1 | . . . . . . . . . . . . . 1 . . . . . . . . . . . . . . . Scanalyzer 18 | . . . 13 . . . 3 . . . . . . . . . . . . . . . . . . 2 . . Insert Component 7 | . . . 7 . . . . . . . . . . . . . . . . . . . . . . . . . Analyze 6 | . . . 6 . . . . . . . . . . . . . . . . . . . . . . . . . Retrieve Study 5 | . . . . . . . 3 . . . . . . . . . . . . . . . . . . 2 . . Garrison Access Hacks 9 | . . . . . . . 1 . 1 . 1 . 1 . . . . . . . . 1 . 1 . 2 . 1 Unlock Access 5 | . . . . . . . 1 . . . 1 . 1 . . . . . . . . 1 . 1 . . . . Seal Access 4 | . . . . . . . . . 1 . . . . . . . . . . . . . . . . 2 . 1 Unauthorized Hacks 24 | . 5 . 6 . . . 4 . 2 . . . 1 . 2 . . . . . 2 1 . 1 . . . . Terminals 22 | . 3 . 6 . . . 4 . 2 . . . 1 . 2 . . . . . 2 1 . 1 . . . . Assimilate 2 | . . . . . . . . . . . . . 1 . . . . . . . . 1 . . . . . . Botnet 14 | . 3 . 5 . . . 3 . 1 . . . . . 1 . . . . . . . . 1 . . . . Operators 4 | . . . 1 . . . 1 . 1 . . . . . 1 . . . . . . . . . . . . . Sabotage 2 | . . . . . . . . . . . . . . . . . . . . . 2 . . . . . . . Fabricators . | . . . . . . . . . . . . . . . . . . . . . . . . . . . . . Repair Stations . | . . . . . . . . . . . . . . . . . . . . . . . . . . . . . Recycling Units 2 | . 2 . . . . . . . . . . . . . . . . . . . . . . . . . . . Tunnel 2 | . 2 . . . . . . . . . . . . . . . . . . . . . . . . . . . Scanalyzers . | . . . . . . . . . . . . . . . . . . . . . . . . . . . . . Garrison Access . | . . . . . . . . . . . . . . . . . . . . . . . . . . . . . Data Cores Recovered 1 | . . . . . . . . . . . . . . . . . . 1 . . . . . . . . . . Used 1 | . . . . . . . . . . . . . . . . . . 1 . . . . . . . . . . Hacking Detections 70 | . 7 . 12 . . . 10 3 3 . 1 . 5 4 4 . 1 4 1 . . 2 . 4 2 3 2 2 Full Trace Events 7 | . 1 . . . . . 1 3 . . . . 1 . . . . 1 . . . . . . . . . . Feedback Events . | . . . . . . . . . . . . . . . . . . . . . . . . . . . . . Feedback Blocked . | . . . . . . . . . . . . . . . . . . . . . . . . . . . . . Robot Schematics Acquired . | . . . . . . . . . . . . . . . . . . . . . . . . . . . . . Robots Built . | . . . . . . . . . . . . . . . . . . . . . . . . . . . . . Authchips . | . . . . . . . . . . . . . . . . . . . . . . . . . . . . . Time . | . . . . . . . . . . . . . . . . . . . . . . . . . . . . . Total Robot Build Rating . | . . . . . . . . . . . . . . . . . . . . . . . . . . . . . Part Schematics Acquired 5 | . . . 5 . . . . . . . . . . . . . . . . . . . . . . . . . Parts Built . | . . . . . . . . . . . . . . . . . . . . . . . . . . . . . Authchips . | . . . . . . . . . . . . . . . . . . . . . . . . . . . . . Time . | . . . . . . . . . . . . . . . . . . . . . . . . . . . . . Total Part Build Rating . | . . . . . . . . . . . . . . . . . . . . . . . . . . . . . Part Studies Acquired 5 | . . . . . . . 3 . . . . . . . . . . . . . . . . . . 2 . . Parts Repaired 5 | . 1 . 1 . . . 1 . . . . . 1 . . . . 1 . . . . . . . . . . Time 206 | . 26 . 32 . . . 32 . . . . . 60 . . . . 56 . . . . . . . . . . Parts Recycled . | . . . . . . . . . . . . . . . . . . . . . . . . . . . . . Recycled Matter 25 | . . . . . . . . . . . . . . . 25 . . . . . . . . . . . . . Retrieved Matter . | . . . . . . . . . . . . . . . . . . . . . . . . . . . . . Retrieved Components . | . . . . . . . . . . . . . . . . . . . . . . . . . . . . . Parts Scanalyzed 5 | . . . 5 . . . . . . . . . . . . . . . . . . . . . . . . . Part Schematics Acquired 5 | . . . 5 . . . . . . . . . . . . . . . . . . . . . . . . . Parts Damaged . | . . . . . . . . . . . . . . . . . . . . . . . . . . . . . Bothacking | -11 -10 -10 -9 -9 -9 -8 -8 -8 -7 -7 -7 -7 -7 -7 -6 -6 -6 -6 -6 -6 -6 -5 -5 -4 -4 -3 -2 -2 ------------ Run | Yrd Mat Min Mat Min Exi Min Mat Gar Fac Was Fac Gar Fac Gar Fac Was Fac Ext Cet Arc Hub Fac Gar Fac Gar Res Res Qua Used RIF Installer 7 | . . . . . . . . 2 . . . 1 . 1 . . . . . . . . 1 . 2 . . . Hotswap 1 | . . . . . . . . . . . . . . 1 . . . . . . . . . . . . . . Command Fork 1 | . . . . . . . . . . . . . . . . . . . . . . . . . 1 . . . Zone Cloak 1 | . . . . . . . . 1 . . . . . . . . . . . . . . . . . . . . Robot Detection 1 | . . . . . . . . . . . . 1 . . . . . . . . . . . . . . . . Watcher Feeds 1 | . . . . . . . . . . . . . . . . . . . . . . . 1 . . . . . Structural Interface 1 | . . . . . . . . . . . . . . . . . . . . . . . . . 1 . . . Robots Hacked 19 | . . . . . . . . . . 5 . . . . 1 6 1 . . . . . . 1 . 2 3 . Non-combat 5 | . . . . . . . . . . . . . . . 1 . 1 . . . . . . 1 . 2 . . Combat 14 | . . . . . . . . . . 5 . . . . . 6 . . . . . . . . . . 3 . Robot Hacks Applied 19 | . . . . . . . . . . 5 . . . . 1 6 1 . . . . . . 1 . 2 3 . find_chute 2 | . . . . . . . . . . . . . . . 1 . . . . . . . . 1 . . . . drop_inventory 2 | . . . . . . . . . . . . . . . . . 1 . . . . . . . . 1 . . ignore_targets 11 | . . . . . . . . . . 5 . . . . . 6 . . . . . . . . . . . . amplify_resonance 1 | . . . . . . . . . . . . . . . . . . . . . . . . . . . 1 . overwrite_iff 2 | . . . . . . . . . . . . . . . . . . . . . . . . . . . 2 . formatsys_low 1 | . . . . . . . . . . . . . . . . . . . . . . . . . . 1 . . Relay Couplers Released 63 | . . . . . . . . 22 . . . . . 16 . . . . . . . . 14 . 11 . . . Machine Destruction 63 | . . . . . . . . 22 . . . . . 16 . . . . . . . . 14 . 11 . . . Attached 8 | . . . . . . . . . . 1 . . . 2 . 1 . . . . . . . 1 . . 3 . Fabnet Peak Effective % . | . . . . . . . . . . . . . . . . . . . . . . . . . . . . . Robots Rewired 10 | . . . . . . . . . . . . . . . . . . 7 . . . . 3 . . . . . Allies Hacked . | . . . . . . . . . . . . . . . . . . . . . . . . . . . . . Hacks Repelled . | . . . . . . . . . . . . . . . . . . . . . . . . . . . . . Allies | -11 -10 -10 -9 -9 -9 -8 -8 -8 -7 -7 -7 -7 -7 -7 -6 -6 -6 -6 -6 -6 -6 -5 -5 -4 -4 -3 -2 -2 -------- Run | Yrd Mat Min Mat Min Exi Min Mat Gar Fac Was Fac Gar Fac Gar Fac Was Fac Ext Cet Arc Hub Fac Gar Fac Gar Res Res Qua Total Allies 33 | . . 3 . 2 . . . . . . . . 1 2 . . . 13 5 . . 1 3 . . 1 2 . Largest Group 11 | . . 3 3 2 1 . . . . . . . 1 2 . . . 11 9 7 7 1 3 3 . 1 . . Highest-Rated Group 728 | . . 40 40 45 14 . . . . . . . 10 51 . . . 307 728 531 531 26 90 90 . 36 . . Highest-Rated Ally 159 | . . 16 16 31 14 . . . . . . . 10 31 . . . 159 159 96 96 26 30 30 . 36 . . Total Orders 3 | . . . . . . . . . . . . . 2 . . . . . . . . . . . . 1 . . STAY 1 | . . . . . . . . . . . . . 1 . . . . . . . . . . . . . . . FOLLOW 1 | . . . . . . . . . . . . . 1 . . . . . . . . . . . . . . . AID 1 | . . . . . . . . . . . . . . . . . . . . . . . . . . 1 . . Ally Attacks 259 | . . 3 26 5 . . . . . . . . . 3 . . . 106 49 14 45 . 5 3 . . . . Total Damage 6377 | . . 26 287 62 . . . . . . . . . 27 . . . 1977 1511 564 1593 . 185 145 . . . . Kills 38 | . . 2 5 1 . . . . . . . . . . . . . 9 8 4 6 . 2 1 . . . . Allies Corrupted 2 | . . . . . . . . . . . . . . . . . . . . . 2 . . . . . . . Allies Melted 1 | . . . . . . . . . . . . . . . . . . . 1 . . . . . . . . . Intel | -11 -10 -10 -9 -9 -9 -8 -8 -8 -7 -7 -7 -7 -7 -7 -6 -6 -6 -6 -6 -6 -6 -5 -5 -4 -4 -3 -2 -2 ------- Run | Yrd Mat Min Mat Min Exi Min Mat Gar Fac Was Fac Gar Fac Gar Fac Was Fac Ext Cet Arc Hub Fac Gar Fac Gar Res Res Qua Active Infowar (turns) 25480 | 36 1909 1588 921 2841 801 . . 5 1330 400 289 170 1295 8 1541 . 795 2189 635 943 293 830 1327 818 774 2632 884 226 Optics 7181 | . . . . . . . . . . . . . . . . . . . . . . 759 1327 818 774 2632 871 . Sensors 14998 | . . . . . . . . . 1154 400 289 170 1295 8 1541 . 795 2189 635 943 206 829 7 818 13 2631 849 226 IFF 1357 | . . . . . . . . . . . . . . . . . . . . . 87 769 5 496 . . . . Structural 294 | . . . . . . . . 5 . . . . . . . . . . . . . . . . . . 289 . Traps 2 | . . . . . . . . . . . . . . . . . 2 . . . . . . . . . . . Seismic 9105 | 36 1909 1588 921 2841 801 . . . 1009 . . . . . . . . . . . . . . . . . . . T.N.C. 1 | . . . . . . . . . . . . . . . . . . . . . . . 1 . . . . . ECM 1 | . . . . . . . . . . . . . . . . . 1 . . . . . . . . . . . Robot Analysis Total 5 | . 1 . 2 . . . . . . . . . . . 1 . . 1 . . . . . . . . . . Derelict Logs Recovered 4 | . . 1 . 3 . . . . . . . . . . . . . . . . . . . . . . . . Drone Launches . | . . . . . . . . . . . . . . . . . . . . . . . . . . . . . Drone Recoveries . | . . . . . . . . . . . . . . . . . . . . . . . . . . . . . Exploration | -11 -10 -10 -9 -9 -9 -8 -8 -8 -7 -7 -7 -7 -7 -7 -6 -6 -6 -6 -6 -6 -6 -5 -5 -4 -4 -3 -2 -2 ------------- Run | Yrd Mat Min Mat Min Exi Min Mat Gar Fac Was Fac Gar Fac Gar Fac Was Fac Ext Cet Arc Hub Fac Gar Fac Gar Res Res Qua Turns Passed 40323 | 135 2295 1588 4117 2841 814 1037 3191 2697 1330 402 289 342 1574 1952 1611 1240 797 2189 635 943 700 830 1327 818 779 2632 884 334 Spaces Moved 17932 | 62 933 643 1835 1104 336 425 1215 1134 569 112 155 167 750 883 716 369 409 1072 265 334 255 442 651 416 376 1439 444 421 Core 475 | 17 . . . . . . . . . . . . . . . . . . . . . . . . . . 136 322 Treads 17291 | 45 866 643 1835 1104 336 425 1215 1134 569 112 155 167 750 883 716 369 409 1072 265 334 255 442 651 416 376 1439 308 . Legs . | . . . . . . . . . . . . . . . . . . . . . . . . . . . . . Wheels 67 | . 67 . . . . . . . . . . . . . . . . . . . . . . . . . . . Hover 99 | . . . . . . . . . . . . . . . . . . . . . . . . . . . . 99 Flight . | . . . . . . . . . . . . . . . . . . . . . . . . . . . . . Fastest Speed 50 | 50 140 240 160 240 240 240 196 196 196 160 160 160 160 160 160 226 160 160 160 160 160 160 160 160 160 155 50 50 Average Speed 188 | 168 219 240 192 240 240 240 226 196 198 168 160 160 160 180 188 235 160 170 161 160 189 160 160 160 160 160 155 65 Slowest Speed 320 | 250 320 320 240 240 240 240 240 196 200 240 160 160 160 240 226 240 160 240 240 160 240 160 160 160 160 240 225 300 Overloaded Moves . | . . . . . . . . . . . . . . . . . . . . . . . . . . . . . Propulsion Burnouts . | . . . . . . . . . . . . . . . . . . . . . . . . . . . . . Robots Hopped . | . . . . . . . . . . . . . . . . . . . . . . . . . . . . . Potential Cave-ins 11 | . . . . 4 . . . . . . . . . . . . . . . . . . . . 5 2 . . Cave-ins Triggered . | . . . . . . . . . . . . . . . . . . . . . . . . . . . . . Exploration Rate (%) 53 | 5 99 94 98 99 73 84 79 87 12 69 7 31 17 71 20 87 10 81 81 96 17 15 52 10 42 56 15 42 Regions Visited 28 Branch Regions 9 Pre-discovered Areas 4 | . 2 . . 1 1 . . . . . . . . . . . . . . . . . . . . . . . Known Exits Taken 13 | . . . . . . 1 1 . . . 1 . 1 . . . 1 1 1 1 1 1 . 1 . 1 1 . Unknown Exits Taken 6 | 1 1 1 1 1 1 . . . . . . . . . . . . . . . . . . . . . . . Scrap Searched 5 | . . 1 . 3 . 1 . . . . . . . . . . . . . . . . . . . . . . Spaces Dug 225 | . . . 32 22 . . 18 . 23 . 4 . 16 . 18 . 22 1 . . 2 8 26 3 8 9 11 2 Terrain Destroyed 674 | . 3 . 58 39 . . 22 1 55 . 4 1 18 38 21 2 45 15 37 1 44 23 109 15 23 30 68 2 Melee 129 | . . . 21 10 . . 15 . 23 . 4 . 14 . 13 . 5 1 . . 1 8 5 3 1 . 3 2 Projectile 264 | . . . 11 29 . . 7 . . . . 1 4 8 8 2 18 14 37 1 43 4 13 12 21 19 12 . AOE 280 | . 3 . 26 . . . . 1 32 . . . . 30 . . 22 . . . . 11 91 . . 11 53 . Terrain Rammed . | . . . . . . . . . . . . . . . . . . . . . . . . . . . . . Walls Destroyed . | . . . . . . . . . . . . . . . . . . . . . . . . . . . . . Machines Disabled . | . . . . . . . . . . . . . . . . . . . . . . . . . . . . . Actions | -11 -10 -10 -9 -9 -9 -8 -8 -8 -7 -7 -7 -7 -7 -7 -6 -6 -6 -6 -6 -6 -6 -5 -5 -4 -4 -3 -2 -2 --------- Run | Yrd Mat Min Mat Min Exi Min Mat Gar Fac Was Fac Gar Fac Gar Fac Was Fac Ext Cet Arc Hub Fac Gar Fac Gar Res Res Qua Total 22112 | 81 1100 663 2192 1215 346 437 1511 1428 689 230 188 212 986 1115 921 559 490 1279 386 720 375 521 792 512 466 1659 567 472 Wait 1474 | 3 97 5 102 24 . 3 110 88 24 8 15 9 103 81 104 51 11 47 8 362 29 6 10 30 22 67 35 20 Move 17908 | 61 932 642 1834 1103 335 424 1215 1133 569 111 155 166 749 882 716 368 408 1071 264 333 254 441 650 415 375 1438 443 421 Hop . | . . . . . . . . . . . . . . . . . . . . . . . . . . . . . Pick Up 246 | 6 14 . 46 7 3 2 18 12 6 6 3 . 8 13 16 4 4 14 7 1 9 11 3 7 9 10 6 1 Fast Attach 119 | 7 4 . . . . . 5 3 2 4 1 2 5 7 5 3 2 2 8 2 7 5 4 5 2 19 6 9 Attach 102 | . 2 1 4 . 1 . 2 6 4 3 . . 1 12 2 2 4 7 1 . 7 3 . 5 4 12 16 3 Detach 45 | . 2 . . . . . . 1 1 2 . . 1 4 1 3 . 1 2 1 4 4 1 2 . 4 6 5 Swap 322 | . 5 1 36 6 2 2 26 34 15 10 4 4 26 12 14 5 7 13 6 2 10 12 24 14 6 20 6 . Drop 307 | . 3 . 46 8 5 2 32 19 7 13 4 2 12 9 19 8 6 15 14 . 9 11 9 8 6 31 5 4 Fire 1217 | 4 41 14 88 47 . 4 77 95 35 68 . 29 53 87 29 115 24 59 68 11 41 11 64 20 38 53 37 5 Melee 249 | . . . 30 20 . . 24 19 26 5 6 . 27 3 14 . 5 1 . 8 1 17 27 6 3 . 5 2 Ram 2 | . . . . . . . . . . . . . . . . . . . . . . . . . . . . 2 Kick . | . . . . . . . . . . . . . . . . . . . . . . . . . . . . . Crush 19 | . . . 6 . . . 2 . . . . . 1 . 1 . 1 2 . . 1 . . . . 5 . . Escape Stasis 27 | . . . . . . . . 18 . . . . . 5 . . . 2 . . . . . . . . 2 . Rewire 5 | . . . . . . . . . . . . . . . . . . 4 . . . . . . 1 . . . Trap . | . . . . . . . . . . . . . . . . . . . . . . . . . . . . . Miscellaneous 70 | . . . . . . . . . . . . . . . . . 18 41 8 . 3 . . . . . . . Route ------- -11/Scrapyard -10/Materials (discovered 6 exits: *Mat x3 / [*Min x2] / [*Sub]) -10/Mines (discovered 3 exits: *Mat x2 / [*Sub]) -9/Materials (discovered 5 exits: *Mat x3 / *Min / [*Sto]) -9/Mines (discovered 4 exits: *Mat x2 / *Exi / [*Zio]) -9/Exiles (discovered 2 exits: [*Min x2]) -8/Mines (discovered 2 exits: *Mat x2) -8/Materials (discovered 3 exits: *Fac x2 / Gar) -8/Garrison (discovered 3 exits: *Fac x3) -7/Factory -7/Waste -7/Factory -7/Garrison -7/Factory (discovered 2 exits: *Fac / Gar) -7/Garrison (discovered 3 exits: *Fac x3) -6/Factory -6/Waste -6/Factory (discovered 2 exits: [*Low] / *Ext) -6/Extension (discovered 3 exits: *Fac x2 / *Cet) -6/Cetus (discovered 2 exits: *Fac / *Arc) -6/Archives (discovered 3 exits: *Fac / *Hub x2) -6/Hub_04(d) -5/Factory -5/Garrison (discovered 2 exits: *Fac x2) -4/Factory (discovered 2 exits: *Upp / Gar) -4/Garrison (discovered 3 exits: *Res x3) -3/Research (discovered 3 exits: *Res x2 / *Arm) -2/Research -2/Quarantine History --------- Turn | Location | Event 23 | -11/Scrapyard | Discovered new exit (range 15) 136 | -11/Scrapyard | Entered Materials 137 | -10/Materials | Met a group of wandering Federalists 206 | -10/Materials | Discovered new exit (range 12) 255 | -10/Materials | Discovered new exit (range 7) 308 | -10/Materials | Build established: Mutant 368 | -10/Materials | Discovered new exit (range 16) 580 | -10/Materials | Discovered new exit (range 3) 1076 | -10/Materials | Discovered new exit (range 10) 1136 | -10/Materials | Discovered new exit (range 14) 2010 | -10/Materials | Repaired Lgt. Treads 2431 | -10/Materials | Entered Mines 2493 | -10/Mines | Learned location of 1 exit from Materials 2619 | -10/Mines | Discovered new exit (range 5) 2638 | -10/Mines | Assisted by bots powering up and referring to "LRC-V3" 2787 | -10/Mines | Core integrity fell below 50% 3223 | -10/Mines | Discovered new exit (range 13) 3683 | -10/Mines | Discovered new exit (range 4) 4019 | -10/Mines | Entered Materials 4019 | -9/Materials | Accompanied by 3 allies 4019 | -9/Materials | Evolved 2 slots: Propulsion x1, Weapon x1 4020 | -9/Materials | Identified exit to Materials 4314 | -9/Materials | Build established: Gunner 4550 | -9/Materials | Discovered new exit (range 14) 4854 | -9/Materials | Discovered new exit (range 6) 5053 | -9/Materials | Discovered exit to Materials (range 5) 5272 | -9/Materials | Central database locked down 5834 | -9/Materials | Build established: Scavenger-Mutant 6182 | -9/Materials | Discovered exit to Materials (range 13) 6503 | -9/Materials | Build established: Tank 7559 | -9/Materials | Repaired Maul 8136 | -9/Materials | Entered Mines 8137 | -9/Mines | Assembled infested the area 8156 | -9/Mines | Met a Derelict bent on vengeance 8271 | -9/Mines | Discovered exit to Materials (range 16) 8536 | -9/Mines | Discovered exit to Materials (range 4) 8539 | -9/Mines | A Derelict revealed a hidden shortcut to a safe place 8563 | -9/Mines | Learned location of Storage (-9) 8671 | -9/Mines | Build established: Scavenger-Mutant 8718 | -9/Mines | Found a hidden stash of uninstalled traps 8862 | -9/Mines | Met a Derelict shopkeep closing up shop 9088 | -9/Mines | A weapon hastily lodged in a ceiling crevice suddenly fell to the ground 9168 | -9/Mines | Learned Materials stockpile data 9252 | -9/Mines | Discovered new exit (range 5) 9558 | -9/Mines | Learned Materials emergency access door positions 10977 | -9/Mines | Entered Exiles 10977 | -9/Exiles | Accompanied by 1 ally 11016 | -9/Exiles | Discovered new exit (range 15) 11090 | -9/Exiles | Met 8R-AWN 11126 | -9/Exiles | Met EX-HEX 11198 | -9/Exiles | Met EX-BIN 11227 | -9/Exiles | Aligned with FarCom system 11229 | -9/Exiles | Given EX-Vault access code 11342 | -9/Exiles | Opened EX-Vault 11361 | -9/Exiles | Found AWS/Autocannon 11386 | -9/Exiles | Found PSU Rigger 11437 | -9/Exiles | Warned to stay clear of 0b10 Research branches 11584 | -9/Exiles | Met EX-DEC 11639 | -9/Exiles | Learned location of Zion (-7) 11757 | -9/Exiles | Discovered new exit (range 14) 11791 | -9/Exiles | Stole two prototypes: PSU Rigger, AWS/Autocannon 11791 | -9/Exiles | Entered Mines 12029 | -8/Mines | Discovered exit to Materials (range 15) 12076 | -8/Mines | Build established: Skirmisher 12764 | -8/Mines | Discovered exit to Materials (range 7) 12828 | -8/Mines | Entered Materials 12828 | -8/Materials | Evolved 2 slots: Propulsion x1, Utility x1 13397 | -8/Materials | Discovered new exit (range 10) 14026 | -8/Materials | Build established: Mutant 14947 | -8/Materials | Repaired Cooling System 15139 | -8/Materials | Build established: Skirmisher 15310 | -8/Materials | Discovered new exit (range 16) 16019 | -8/Materials | Identified exit to Garrison 16019 | -8/Materials | Entered Garrison 16316 | -8/Garrison | Garrison Relay disabled 16591 | -8/Garrison | Triggered checkpoint 16804 | -8/Garrison | Triggered checkpoint 16895 | -8/Garrison | Garrison Relay disabled 17192 | -8/Garrison | Triggered checkpoint 17313 | -8/Garrison | Learned Factory security intel 17332 | -8/Garrison | Discovered new exit (range 12) 17407 | -8/Garrison | System corruption reached 10% 17687 | -8/Garrison | Installed Relay Interface Framework 17791 | -8/Garrison | Triggered checkpoint 17817 | -8/Garrison | Garrison Relay disabled 17884 | -8/Garrison | Garrison Relay disabled 18037 | -8/Garrison | Triggered checkpoint 18143 | -8/Garrison | Triggered checkpoint 18172 | -8/Garrison | Garrison Relay disabled 18219 | -8/Garrison | Discovered new exit (range 14) 18362 | -8/Garrison | Discovered new exit (range 10) 18397 | -8/Garrison | Triggered checkpoint 18447 | -8/Garrison | Garrison Relay disabled 18488 | -8/Garrison | Discovered new exit (range 71) 18488 | -8/Garrison | Discovered new exit (range 66) 18488 | -8/Garrison | Discovered new exit (range 12) 18570 | -8/Garrison | Expanded RIF knowledge: Zone Cloak 18716 | -8/Garrison | Entered Factory 18716 | -7/Factory | Evolved 2 slots: Utility x2 18718 | -7/Factory | FarCom data flow suspended 18957 | -7/Factory | Build established: Mutant 19145 | -7/Factory | Lost 3 parts (1n1u1w) 19519 | -7/Factory | Build established: Scavenger-Mutant 19617 | -7/Factory | Discovered new exit (range 15) 19721 | -7/Factory | Identified exit to Factory 19916 | -7/Factory | First assault squad dispatched 20046 | -7/Factory | Sucked down chute 20046 | -7/Factory | Entered Waste 20061 | -7/Waste | EMP discharged 20064 | -7/Waste | Spotted C-40 Crusher 20072 | -7/Waste | Crushed by Compactor (1 part destroyed, 1 dropped) 20084 | -7/Waste | Destroyed C-40 Crusher 20107 | -7/Waste | Spotted C-40 Crusher 20112 | -7/Waste | Found Damper Plating 20131 | -7/Waste | Crushed by Compactor (1 part destroyed, 1 dropped) 20133 | -7/Waste | Spotted C-40 Crusher 20161 | -7/Waste | EMP discharged 20161 | -7/Waste | System corruption reached 10% 20202 | -7/Waste | Discovered new exit (range 16) 20202 | -7/Waste | Spotted C-40 Crusher 20261 | -7/Waste | EMP discharged 20282 | -7/Waste | Destroyed C-40 Crusher 20325 | -7/Waste | Spotted C-40 Crusher 20360 | -7/Waste | Destroyed C-40 Crusher 20361 | -7/Waste | EMP discharged 20415 | -7/Waste | Destroyed C-40 Crusher 20446 | -7/Waste | Identified exit to Factory 20448 | -7/Waste | Entered Factory 20737 | -7/Factory | Identified exit to Garrison 20737 | -7/Factory | Entered Garrison 20772 | -7/Garrison | Expanded RIF knowledge: Robot Detection 20849 | -7/Garrison | Build established: Mutant 20933 | -7/Garrison | Triggered checkpoint 20959 | -7/Garrison | Triggered checkpoint 21060 | -7/Garrison | Discovered new exit (range 13) 21077 | -7/Garrison | Identified exit to Factory 21079 | -7/Garrison | Entered Factory 21217 | -7/Factory | Build established: Scavenger-Tank 21221 | -7/Factory | Discovered exit to Factory (range 15) 21361 | -7/Factory | Repaired Enh. Autogun 21589 | -7/Factory | Build established: Scavenger-Mutant 22623 | -7/Factory | Identified exit to Garrison 22629 | -7/Factory | Found Prototype Launcher 22629 | -7/Factory | Identified Rocket Array 22653 | -7/Factory | Entered Garrison 22703 | -7/Garrison | Garrison Relay disabled 22721 | -7/Garrison | Triggered checkpoint 22839 | -7/Garrison | Build established: Tank 22841 | -7/Garrison | Rescued a captive Derelict 22842 | -7/Garrison | Rescued a captive Derelict 22901 | -7/Garrison | Triggered checkpoint 22910 | -7/Garrison | P-60 Hacker assimilated allied 7I-XS7(b) 22933 | -7/Garrison | System corruption reached 30% 22937 | -7/Garrison | Destroyed 8 combat bots 22992 | -7/Garrison | Lost 7 parts (2n2u3w) 23264 | -7/Garrison | Discovered exit to Factory (range 11) 23321 | -7/Garrison | Triggered checkpoint 23336 | -7/Garrison | Garrison Relay disabled 23353 | -7/Garrison | Discovered exit to Factory (range 36) 23353 | -7/Garrison | Discovered exit to Factory (range 73) 23353 | -7/Garrison | Discovered exit to Factory (range 25) 23385 | -7/Garrison | Build established: Scavenger-Gunner 23523 | -7/Garrison | Triggered checkpoint 23761 | -7/Garrison | Triggered checkpoint 23768 | -7/Garrison | Build established: Gunner 24319 | -7/Garrison | Triggered checkpoint 24371 | -7/Garrison | Garrison Relay disabled 24441 | -7/Garrison | Expanded RIF knowledge: Hotswap 24501 | -7/Garrison | Garrison Relay disabled 24605 | -7/Garrison | Entered Factory 24605 | -6/Factory | Evolved 2 slots: Utility x2 25094 | -6/Factory | Garrison activated, responded to threat 25436 | -6/Factory | Build established: Scavenger-Mutant 25659 | -6/Factory | Discovered new exit (range 11) 25998 | -6/Factory | Build established: Scavenger-Skirmisher 26216 | -6/Factory | Sucked down chute 26216 | -6/Factory | Entered Waste 26231 | -6/Waste | EMP discharged 26257 | -6/Waste | Spotted C-40 Crusher 26267 | -6/Waste | Spotted C-40 Crusher 26269 | -6/Waste | Spotted C-40 Crusher 26309 | -6/Waste | Spotted C-40 Crusher 26312 | -6/Waste | Spotted C-40 Crusher 26331 | -6/Waste | EMP discharged 26375 | -6/Waste | Destroyed C-40 Crusher 26403 | -6/Waste | Spotted C-40 Crusher 26431 | -6/Waste | EMP discharged 26447 | -6/Waste | Build established: Scavenger-Tank 26531 | -6/Waste | EMP discharged 26604 | -6/Waste | Destroyed C-40 Crusher 26631 | -6/Waste | EMP discharged 26684 | -6/Waste | Destroyed C-40 Crusher 26731 | -6/Waste | EMP discharged 26742 | -6/Waste | Destroyed C-40 Crusher 26831 | -6/Waste | EMP discharged 26865 | -6/Waste | Destroyed C-40 Crusher 26931 | -6/Waste | EMP discharged 27031 | -6/Waste | EMP discharged 27083 | -6/Waste | Discovered new exit (range 13) 27131 | -6/Waste | EMP discharged 27231 | -6/Waste | EMP discharged 27306 | -6/Waste | Destroyed C-40 Crusher 27331 | -6/Waste | EMP discharged 27431 | -6/Waste | EMP discharged 27451 | -6/Waste | Identified exit to Factory 27456 | -6/Waste | Entered Factory 28093 | -6/Factory | Discovered new exit (range 6) 28104 | -6/Factory | Identified exit to Extension 28136 | -6/Factory | Spotted B-75 Beast 28209 | -6/Factory | Discovered new exit (range 12) 28253 | -6/Factory | Entered Extension 29020 | -6/Extension | Rescued a captive Derelict 29022 | -6/Extension | Rescued a captive Derelict 29191 | -6/Extension | Rescued a captive Derelict 29191 | -6/Extension | Rescued a captive Derelict 29362 | -6/Extension | Build established: Commander-Tank 29432 | -6/Extension | Spotted B-75 Beast 29436 | -6/Extension | Allies destroyed B-75 Beast 29452 | -6/Extension | Spotted B-75 Beast 29468 | -6/Extension | Destroyed B-75 Beast 29523 | -6/Extension | Discovered new exit (range 15) 29647 | -6/Extension | Rescued a captive Derelict 30101 | -6/Extension | Repaired Hvy. Treads? 30136 | -6/Extension | Lost 6 allies 30206 | -6/Extension | Rescued A7 30253 | -6/Extension | Rescued a captive Derelict 30404 | -6/Extension | Build established: Scavenger-Tank 30422 | -6/Extension | Discovered new exit (range 10) 30427 | -6/Extension | Discovered new exit (range 6) 30439 | -6/Extension | Identified exit to Cetus 30442 | -6/Extension | Disrupted transfer network 30442 | -6/Extension | Entered Cetus 30442 | -6/Cetus | Accompanied by 4 allies (A7) 30447 | -6/Cetus | Acquired a Cetus Manufacturing Module code from A7 30464 | -6/Cetus | Spotted Cetus Guard 30464 | -6/Cetus | Spotted Cetus Guard 30468 | -6/Cetus | Allies destroyed Cetus Guard 30471 | -6/Cetus | Spotted Cetus Guard 30473 | -6/Cetus | Allies destroyed Cetus Guard 30477 | -6/Cetus | Spotted Cetus Guard 30485 | -6/Cetus | Allies destroyed Cetus Guard 30605 | -6/Cetus | Started Cetus Manufacturing Module 30630 | -6/Cetus | Manufactured an Enhanced Grunt 30655 | -6/Cetus | Manufactured an Enhanced Grunt 30680 | -6/Cetus | Manufactured an Enhanced Grunt 30705 | -6/Cetus | Manufactured an Enhanced Grunt 30715 | -6/Cetus | Escorted A7 to Cetus Mainframe 30730 | -6/Cetus | Manufactured an Enhanced Grunt 30779 | -6/Cetus | Discovered new exit (range 16) 30809 | -6/Cetus | Spotted Cetus Guard 30810 | -6/Cetus | Spotted Cetus Guard 30815 | -6/Cetus | Spotted Cetus Guard 30816 | -6/Cetus | Allies destroyed Cetus Guard 30820 | -6/Cetus | Spotted Cetus Guard 30822 | -6/Cetus | Allies destroyed Cetus Guard 30828 | -6/Cetus | Allies destroyed Cetus Guard 30829 | -6/Cetus | Destroyed Cetus Guard 30841 | -6/Cetus | Discovered new exit (range 15) 30849 | -6/Cetus | Met Revision 17 31060 | -6/Cetus | Murdered A7 31063 | -6/Cetus | Build established: Commander-Tank 31063 | -6/Cetus | Extracted ID and sensor layout for unrecognized location from A7's data core 31070 | -6/Cetus | Identified exit to Archives 31077 | -6/Cetus | Entered Archives 31077 | -6/Archives | Accompanied by 7 allies 31265 | -6/Archives | Discovered new exit (range 15) 31274 | -6/Archives | Unable to access archive contents 31293 | -6/Archives | Unable to access archive contents 31297 | -6/Archives | Discovered new exit (range 16) 31425 | -6/Archives | Build established: Scavenger-Mutant 31443 | -6/Archives | Discovered new exit (range 15) 31473 | -6/Archives | Identified exit to Hub_04(d) 31544 | -6/Archives | Identified exit to Factory 32020 | -6/Archives | Entered Hub_04(d) 32020 | -6/Hub_04(d) | Accompanied by 7 allies 32194 | -6/Hub_04(d) | Network Hub disabled 32225 | -6/Hub_04(d) | Spotted Lightning 32225 | -6/Hub_04(d) | Spotted Lightning 32225 | -6/Hub_04(d) | Spotted Lightning 32230 | -6/Hub_04(d) | Destroyed Lightning 32242 | -6/Hub_04(d) | Allies destroyed Lightning 32263 | -6/Hub_04(d) | Allies destroyed Lightning 32285 | -6/Hub_04(d) | Spotted Lightning 32287 | -6/Hub_04(d) | Spotted Lightning 32288 | -6/Hub_04(d) | Spotted Lightning 32355 | -6/Hub_04(d) | Lost 5 allies 32363 | -6/Hub_04(d) | Destroyed Lightning 32382 | -6/Hub_04(d) | Destroyed Lightning 32407 | -6/Hub_04(d) | Destroyed Lightning 32413 | -6/Hub_04(d) | Found Prototype Device 32413 | -6/Hub_04(d) | Identified Exp. EM Shield 32484 | -6/Hub_04(d) | Build established: Scavenger-Tank 32485 | -6/Hub_04(d) | Network Hub disabled 32660 | -6/Hub_04(d) | Discovered exit to Factory (range 9) 32707 | -6/Hub_04(d) | System corruption reached 10% 32720 | -6/Hub_04(d) | Entered Factory 32720 | -5/Factory | Evolved 2 slots: Propulsion x2 32952 | -5/Factory | Spotted B-75 Beast 33196 | -5/Factory | Build established: Scavenger-Assassin 33535 | -5/Factory | Identified exit to Garrison 33550 | -5/Factory | Entered Garrison 33626 | -5/Garrison | Heavy support dispatched to Factory 33660 | -5/Garrison | Triggered checkpoint 33694 | -5/Garrison | Triggered checkpoint 33702 | -5/Garrison | Triggered checkpoint 33736 | -5/Garrison | Destroyed 12 combat bots 33752 | -5/Garrison | Triggered checkpoint 33805 | -5/Garrison | Garrison Relay disabled 33985 | -5/Garrison | Triggered checkpoint 34066 | -5/Garrison | Discovered new exit (range 11) 34081 | -5/Garrison | Identified exit to Factory 34145 | -5/Garrison | Heavy support dispatched to Factory 34172 | -5/Garrison | Triggered checkpoint 34203 | -5/Garrison | Garrison Relay disabled 34280 | -5/Garrison | Build established: Scavenger-Tank 34320 | -5/Garrison | Triggered checkpoint 34348 | -5/Garrison | Triggered checkpoint 34365 | -5/Garrison | Garrison Relay disabled 34388 | -5/Garrison | Heavy support dispatched to Factory 34686 | -5/Garrison | Discovered exit to Factory (range 13) 34797 | -5/Garrison | Expanded RIF knowledge: Watcher Feeds 34877 | -5/Garrison | Entered Factory 34877 | -4/Factory | Accompanied by 3 allies 34877 | -4/Factory | Evolved 2 slots: Utility x2 34947 | -4/Factory | Identified exit to DSF 35182 | -4/Factory | Build established: Scavenger-Assassin 35226 | -4/Factory | Watched by a mysterious "MATRIX" hacker. 35254 | -4/Factory | Discovered new exit (range 16) 35327 | -4/Factory | P-70 Sage assimilated allied Fighter 6b 35443 | -4/Factory | Identified exit to Upper Caves 35686 | -4/Factory | Identified exit to Garrison 35695 | -4/Factory | Entered Garrison 35753 | -4/Garrison | Triggered checkpoint 35885 | -4/Garrison | Build established: Scavenger-Tank 35979 | -4/Garrison | Garrison Relay disabled 35997 | -4/Garrison | Discovered new exit (range 77) 35997 | -4/Garrison | Discovered new exit (range 43) 35997 | -4/Garrison | Discovered new exit (range 80) 36038 | -4/Garrison | Expanded RIF knowledge: Structural Interface 36203 | -4/Garrison | Garrison Relay disabled 36256 | -4/Garrison | Triggered checkpoint 36332 | -4/Garrison | Garrison Relay disabled 36351 | -4/Garrison | Expanded RIF knowledge: Command Fork 36472 | -4/Garrison | Identified exit to Research 36474 | -4/Garrison | Entered Research 36474 | -3/Research | Evolved 2 slots: Power x1, Utility x1 36674 | -3/Research | Revision forces began assault on 0b10 36681 | -3/Research | Met up with Revision 17++ 36741 | -3/Research | Build established: Bothacker-Tank 36828 | -3/Research | Found Unknown Device 36828 | -3/Research | Identified Launcher Loader 37174 | -3/Research | Research terminal network offline 37185 | -3/Research | Discovered new exit (range 20) 37223 | -3/Research | Identified exit to Research 37730 | -3/Research | Spotted Striker 37786 | -3/Research | Lost 8 allies 38063 | -3/Research | Discovered exit to Research (range 15) 38350 | -3/Research | Central database locked down 38465 | -3/Research | Discovered new exit (range 10) 38479 | -3/Research | Identified exit to Armory 38705 | -3/Research | Spotted Striker 38708 | -3/Research | Spotted Striker 38723 | -3/Research | Destroyed Striker 38740 | -3/Research | Destroyed Striker 38901 | -3/Research | Spotted Executioner 38904 | -3/Research | Spotted Striker 38904 | -3/Research | Destroyed Executioner 38991 | -3/Research | Spotted Striker 38993 | -3/Research | Spotted Striker 39000 | -3/Research | Spotted Striker 39042 | -3/Research | Spotted Striker 39042 | -3/Research | Spotted Striker 39044 | -3/Research | Destroyed Striker 39054 | -3/Research | Destroyed Striker 39058 | -3/Research | Spotted Striker 39066 | -3/Research | Destroyed Striker 39106 | -3/Research | Entered another Research area 39106 | -2/Research | Evolved 2 slots: Utility x2 39119 | -2/Research | Lost 9 parts (2p3n3u1w) 39417 | -2/Research | Build established: Bothacker-Assassin 39861 | -2/Research | Spotted B-90 Cyclops 39868 | -2/Research | Build established: Bothacker-Skirmisher 39915 | -2/Research | System corruption reached 10% 39948 | -2/Research | Lost 18 parts (2p2n8u6w) 39986 | -2/Research | Discovered new exit (range 9) 39990 | -2/Research | Identified exit to Quarantine 39990 | -2/Research | Entered Quarantine 40027 | -2/Quarantine | Found Alien Reactor 40027 | -2/Quarantine | Identified Matter Drive 40173 | -2/Quarantine | Found Alien Artifact 40173 | -2/Quarantine | Identified Core Reset Matrix 40173 | -2/Quarantine | Used Core Reset Matrix 40177 | -2/Quarantine | Detected hypermatrix surge 40177 | -2/Quarantine | Sensed 16 artifacts in vicinity 40205 | -2/Quarantine | Core integrity fell below 50% 40241 | -2/Quarantine | Found Terrabomb 40241 | -2/Quarantine | Used Terrabomb 40266 | -2/Quarantine | Core integrity fell below 20% 40277 | -2/Quarantine | Met incapacitated Sigix Warrior 40277 | -2/Quarantine | Lockdown squad dispatched 40281 | -2/Quarantine | Acquired the access code to the Sigix quarantine chamber 40282 | -2/Quarantine | Unlocked Sigix quarantine chamber 40286 | -2/Quarantine | Found Sigix Containment Pod 40304 | -2/Quarantine | Build established: Mutant 40324 | -2/Quarantine | Destroyed by G-73 Enforcer with Heavy Laser Last Messages --------------- 40282_ Connecting with Sigix Quarantine Controls... 40282_ Quarantine chamber unlocked. 40282_ Quarantine chamber walls retract into the ground. 40283_ Dropped Med. Storage Unit. 40283_ Dropped Enh. Quantum Rifle. 40286_ ALERT: Potential suspicious activity detected, Programmers report to Quarantine Zone 1G. 40286_ Acquired Sigix Containment Pod. 40291_ Graphene Brace destroyed. 40292_ Penetrated by Slug. 40292_ Slug penetrates G-73 Enforcer. 40311_ Acquired Prototype Slashing Weapon. 40311_ Identified Plasma Sword. 40316_ Slug penetrates Wall. 40320_ Slug penetrates H-88 Terminator. 40321_ Penetrated by Slug. 40321_ Cmb. Linear Gravjet destroyed. 40321_ Adv. Signal Interpreter destroyed. 40323_ Slug penetrates Wall. 40324_ Penetrated by Slug. Map ----- +----------------------------------------------------+ | ????????#""T T""#????## | | ????????#### ####????# | | ??????????#T #????????# | | ?########### #????????# | | ?# # #????????# | | ?? # #????????# """"""""" | | ?????""""" " ##########"""" " | | ???? """]" # " " | | ??? " """ # T " " | | ???? " ?# " " | | ???? "" ?######## ######" * " | | ???? ?????????# ##### """ """ " | | ????#####?????????# ### " " " " | | ??????????????????# #?# " " " " | | ?##########???????# #?## " """ | | ?# ! #???????# ####??##" + " | | ?# #??????## ##?????##"""" " | | ?#/ ######## #??????## " " | | ?# """ # "" *#???????###" | | ?# ] """ ; g "T #?????????###" | | ?# """ # g #????????????# | | ?# """ # hg#### *#????????????? | | ?#/ """ # #??###+###????????????? | | ?# ; m #?????????????????????? | | ?#######"## #?????????????????????? | | ???????#"## @ #????????????????###### | | ??????? #????????????????#""""" | | ??????#hh#### #????????????????#""""" | | ??????# #??? #????????????????#"" "" | | ??????####??? #????????????????# | | ????????????? #????????????????# | | ????????????? #??????????########+### | | ?????????????+#??????????# | | ?????????????????????????# | | ?????????????????????????# | | ?????????????????????????+ | | ??????????????????????? # ####### | | ????????????????????? ??# ??????? | | ????????????????????#????# ???????? | | ???????????????????????? ????????? | | ??????????????????????? ????????? | | ??????????????????????"" ""?????????? | | ???????????????????????" "??????????? | | ????????????????????????????????????? | | ????????????????????????????????????? | | ????????????????????????????????????? | | ????????????????????????????????????? | | ????????????????????????????????????? | | ?????????????????????????????????/??? | | ????????????????????????????????????? | +----------------------------------------------------+ Best States ------------- Heat Dissipation 99 Energy Generation 66 Energy Capacity 600 Matter Stores 300 Matter Capacity 550 Sight Range 22 Robot Scan Range 16 Terrain Scan Density 210 ECM Strength 1 Power Amplification 40 Additional Mass Support 16 EM Shielding 2 Armor Coverage 1825 Resistance: EX 25 Resistance: EM 90 Power Shielding 33 Weapon Cycling 15 Phase Shifting 10 Evasion (%) 53 Targeting Accuracy 8 Melee Accuracy 6 Armor Integrity Analysis 40 Recoil Reduction 6 Kinecelleration 40 Offensive Hacking 12 Relay Coupler Types 4 Relay Coupler Value 103 Trap Extractor Capacity 4 Item Schematics ----------------- None Robot Schematics ------------------ None Fabricated ------------ Nothing Repaired ---------- Lgt. Treads | 28% | -10/Materials Maul | 26% | -9/Materials Cooling System | 38% | -8/Materials Enh. Autogun | 61% | -7/Factory Hvy. Treads | 35% | -6/Extension Studied --------- None Alien Tech Used ----------------- Matter Drive Core Reset Matrix Terrabomb Achievements -------------- Better Safe Than Exploded Throw Away The Key Challenges ------------ None Game ------ Seed VortexArmageddonInterpreter Manual? 0 Play Time 04:49:29 Cumulative 199.8 hours Start 2026.03.04 @ 21:23:00 End 2026.03.08 @ 12:07:11 Sessions 11 Manual Loads 0 Difficulty Rogue Special Mode None Game No. 114 Rogue 110 Adventurer 4 Explorer 0 Win Type - Total 3 Types 2/0/0/1/0/0/0/0/0/0 Lore% 70 Gallery% 60 Achievement% 41 Wizard Run 0 Options --------- Layout 0 ASCII 0 Keyboard 1 Movement Vi Keybinds 0 Fullscreen 1 Font 24/Smallcaps Map View 76x50 Zoom Use 0% Tactical HUD 1 Map Filters NONE Filters NONE Steam 1 RUN: d586f441-9759-4806-b473-1632fc2bab12